Cogmind - Beta 10 X1 @@@ ROGUE MODE // 2020.07.03 @ 22:34:07 Player: SirMrDrProf Result: Establishing 0b11! Performance ------------- Evolutions (9) 4500 Regions Visited (35) 7000 Robots Destroyed (193) 965 Value Destroyed (11750) 11750 Prototype IDs (104) 2080 Alien Tech Used (13) 2600 Bonus (51721) 51721 TOTAL SCORE: 80616 Bonus ------- High Alert Combat Kills 1024 Follower Combat Kills 2253 Network Hubs Disabled 400 Met Data Miner 300 Met Warlord at Base 500 MAIN.C Attacked Warlord 500 Built Enhanced Grunts 300 A7 Reached Mainframe 300 Met R17 at Cetus 500 Found Hidden Lab 3000 Met R17 at Research 2000 Met Warlord at Research 2000 Destroyed MAIN.C Guards 500 Met MAIN.C 5000 Destroyed MAIN.C Shell 5000 Destroyed MAIN.C 10000 Met Architect 300 Destroyed A8 300 Destroyed A6 400 Destroyed A5 500 Destroyed A4 700 Destroyed A3 800 Destroyed A2 1000 Destroyed Architect 15000 Win 3000 Friendly Fire -3856 Cogmind --------- Core Integrity 1648/1850 Matter 36/300 Energy 372/380 System Corruption 10% Temperature Cool (8) Movement Flying (12) Location 0b11 Command Parts ------- > --- POWER (2) -------- Zero-point Reactor Zero-point Reactor > --- PROPULSION (8) --- Electron Diverter Electron Diverter Electron Diverter Electron Diverter Electron Diverter Electron Diverter Cooled Q-thruster Cooled Q-thruster > --- UTILITY (14) ----- Experimental Power Amplifier Medium Storage Unit Spectral Analyzer Experimental Terrain Scan Processor Experimental Melee Analysis Suite Experimental Target Analyzer Experimental Core Analyzer Experimental Armor Integrity Analyzer Femtoactuators Experimental Phase Shifter Experimental Powered Armor Experimental Powered Armor Experimental Powered Armor AEGIS Remote Shield > --- WEAPON (2) ------- Tiamat Missile Launcher > --- INVENTORY (10) --- Zero-point Reactor Experimental Q-thruster Quantum Shading Machine Experimental Phase Shifter Transdimensional Reconstructor High-powered Transdimensional Reconstructor Core Expander Sigix Broadsword Peak State ------------ > --- POWER ------------ Zero-point Reactor Zero-point Reactor > --- PROPULSION ------- Electron Diverter Electron Diverter Electron Diverter Electron Diverter Electron Diverter Electron Diverter Cooled Q-thruster Cooled Q-thruster > --- UTILITY ---------- Medium Storage Unit Spectral Analyzer Experimental Terrain Scan Processor Experimental Melee Analysis Suite Experimental Target Analyzer Experimental Core Analyzer Experimental Armor Integrity Analyzer Experimental Weapon Cycler Femtoactuators Experimental Phase Shifter Experimental Powered Armor Experimental Powered Armor Experimental Powered Armor AEGIS Remote Shield > --- WEAPON ----------- Sigix Broadsword > --- INVENTORY -------- Zero-point Reactor Experimental Q-thruster Quantum Shading Machine Experimental Phase Shifter Transdimensional Reconstructor High-powered Transdimensional Reconstructor High-powered Transdimensional Reconstructor Core Expander Tiamat Missile Launcher [Rating: 255] Favorites ----------- Power Zero-point Reactor Engine Light Ion Engine Power Core Micro Nuclear Core Reactor Zero-point Reactor Propulsion Electron Diverter Treads Centrium Heavy Treads Flight Unit Electron Diverter Utility Advanced Hacking Suite Device Experimental Terrain Scanner Storage Medium Storage Unit Processor Experimental Terrain Scan Processor Hackware Advanced Hacking Suite Protection Heavy Regenerative Plating Artifact Matter Drive Weapon Sigix Broadsword Energy Gun Improved EM Shotgun Energy Cannon Improved EM Pulse Cannon Ballistic Gun Improved KE Penetrator Ballistic Cannon Advanced Assault Cannon Launcher Precision Grenade Launcher Slashing Weapon Sigix Broadsword Piercing Weapon Lance Build | -11 -10 -10 -9 -9 -9 -7 -7 -7 -7 -6 -6 -6 -6 -6 -6 -6 -6 -5 -5 -5 -5 -5 -5 -4 -4 -4 -4 -3 -3 -3 -2 -2 -1 -1 -1 ------- Run | Scr Mat Min Mat Sto Rec Fac Low Low Dat Pro Fac Was Fac Ext Cet Arc Hub Fac Was Fac Upp Upp War Pro Fac Arm Lab Res Qua Sec Res Tes Acc Com Ac0 Slots Evolved 18 | . . . 2 . . 4 . . . . 2 . . . . . . 2 . . . . . . 2 . . 2 . . 2 . 2 . . Power 1 | . . . . . . 1 . . . . . . . . . . . . . . . . . . . . . . . . . . . . . Propulsion 5 | . . . 1 . . 1 . . . . . . . . . . . . . . . . . . 1 . . . . . 2 . . . . Utility 12 | . . . 1 . . 2 . . . . 2 . . . . . . 2 . . . . . . 1 . . 2 . . . . 2 . . Weapon . | . . . . . . . . . . . . . . . . . . . . . . . . . . . . . . . . . . . . Parts Attached 243 | 2 1 6 11 . 2 14 3 1 . 4 11 4 10 3 13 1 . 9 2 7 . . 7 1 10 6 6 5 6 6 13 7 6 21 45 Power 15 | . . 1 . . . 2 . . . 1 . 1 . 1 2 1 . 1 . 2 . . . . . 1 . . . . . . . 2 . Engine 1 | . . 1 . . . . . . . . . . . . . . . . . . . . . . . . . . . . . . . . . Core 7 | . . . . . . 2 . . . 1 . . . 1 . 1 . 1 . 1 . . . . . . . . . . . . . . . Reactor 7 | . . . . . . . . . . . . 1 . . 2 . . . . 1 . . . . . 1 . . . . . . . 2 . Propulsion 44 | . 1 2 5 . . 2 . 1 . 1 2 . 1 . 1 . . 3 . 2 . . 1 . 4 1 1 2 1 . 4 . . . 9 Treads 1 | . . . . . . . . . . . . . . . . . . . . . . . . . . . . . . . . . . . 1 Leg . | . . . . . . . . . . . . . . . . . . . . . . . . . . . . . . . . . . . . Wheel . | . . . . . . . . . . . . . . . . . . . . . . . . . . . . . . . . . . . . Hover . | . . . . . . . . . . . . . . . . . . . . . . . . . . . . . . . . . . . . Flight 43 | . 1 2 5 . . 2 . 1 . 1 2 . 1 . 1 . . 3 . 2 . . 1 . 4 1 1 2 1 . 4 . . . 8 Utility 130 | . . 1 . . 2 6 1 . . . 5 3 3 . 2 . . 4 2 3 . . 6 . 5 3 3 3 4 6 9 3 6 17 33 Device 84 | . . . . . . 2 1 . . . 3 2 2 . 1 . . 3 2 1 . . 5 . 4 2 . 1 3 3 8 3 4 13 21 Storage 4 | . . . . . . 2 . . . . . . . . . . . . . . . . . . . . . . 1 . . . . 1 . Processor 12 | . . 1 . . 1 1 . . . . . . 1 . . . . . . 1 . . 1 . . . . . . . . . 2 3 1 Hackware 9 | . . . . . . 1 . . . . 1 1 . . . . . 1 . . . . . . . 1 1 . . . 1 . . . 2 Protection 20 | . . . . . 1 . . . . . 1 . . . 1 . . . . 1 . . . . 1 . 2 2 . 2 . . . . 9 Artifact 1 | . . . . . . . . . . . . . . . . . . . . . . . . . . . . . . 1 . . . . . Weapon 54 | 2 . 2 6 . . 4 2 . . 2 4 . 6 2 8 . . 1 . . . . . 1 1 1 2 . 1 . . 4 . 2 3 Energy Gun 2 | . . . 1 . . . . . . . . . . . . . . . . . . . . . . . 1 . . . . . . . . Energy Cannon 3 | . . . . . . . . . . . . . . 1 2 . . . . . . . . . . . . . . . . . . . . Ballistic Gun 12 | 2 . 1 1 . . 1 . . . 1 1 . 1 . 3 . . . . . . . . . 1 . . . . . . . . . . Ballistic Cannon 5 | . . . . . . 1 1 . . . . . 3 . . . . . . . . . . . . . . . . . . . . . . Launcher 18 | . . 1 4 . . 1 . . . 1 2 . 1 1 1 . . . . . . . . 1 . . . . . . . 2 . 1 2 Special Weapon . | . . . . . . . . . . . . . . . . . . . . . . . . . . . . . . . . . . . . Impact Weapon . | . . . . . . . . . . . . . . . . . . . . . . . . . . . . . . . . . . . . Slashing Weapon 13 | . . . . . . 1 1 . . . 1 . 1 . 2 . . . . . . . . . . 1 1 . 1 . . 2 . 1 1 Piercing Weapon 1 | . . . . . . . . . . . . . . . . . . 1 . . . . . . . . . . . . . . . . . Special Melee Weapon . | . . . . . . . . . . . . . . . . . . . . . . . . . . . . . . . . . . . . Unidentified Prototypes 70 | . . . 2 . . . 1 . . . 2 2 3 . 3 . . 2 1 1 . . 4 1 1 1 3 1 3 4 4 4 1 6 20 Parts Lost 20 | . . 3 1 . . . . . . . . . . . . . . 1 . 2 . . . 1 1 4 . . . . . . . 1 6 Power . | . . . . . . . . . . . . . . . . . . . . . . . . . . . . . . . . . . . . Propulsion 2 | . . 1 . . . . . . . . . . . . . . . . . . . . . . . 1 . . . . . . . . . Utility 15 | . . . . . . . . . . . . . . . . . . 1 . 2 . . . 1 1 3 . . . . . . . 1 6 Weapon 3 | . . 2 1 . . . . . . . . . . . . . . . . . . . . . . . . . . . . . . . . Highest Loss Streak 3 | . . 3 1 . . . . . . . . . . . . . . 1 . 2 . . . 1 1 3 . . . . . . . 1 1 Average Slot Usage (%) 92 | . 40 43 63 77 94 97 94 98 100 100 99 93 98 100 99 100 100 99 99 98 94 94 94 92 98 94 85 83 86 83 87 86 88 89 92 Core 3 | . . . . . . 14 14 14 14 14 12 8 6 6 5 2 6 5 5 5 5 5 5 5 5 3 . . . . . . . . . Reactor 4 | . . . . . . . . . . . . 4 6 6 6 9 6 5 5 4 5 5 5 5 5 4 5 4 4 4 4 4 3 5 7 Flight 29 | . 12 7 28 33 33 30 28 33 35 35 31 31 31 31 31 31 31 27 27 27 27 27 27 27 30 30 30 27 27 27 33 33 30 30 29 Device 15 | . . . . . . 11 14 14 14 14 18 18 17 18 17 18 18 21 21 21 16 16 16 14 18 14 10 9 9 8 12 11 19 19 14 Storage 4 | . . . . . . 5 7 7 7 7 6 6 6 6 6 6 6 5 5 5 5 5 5 5 5 5 5 4 4 4 4 4 3 3 3 Processor 11 | . . 14 11 11 18 13 7 7 7 7 6 6 6 6 6 6 6 5 5 5 11 11 11 11 10 10 10 9 9 9 8 8 10 14 21 Hackware 8 | . . . . . . . 7 7 7 7 12 12 12 12 10 6 6 11 11 11 11 11 11 11 10 14 18 18 18 15 12 12 10 5 . Protection 4 | . . . . . 8 3 . . . . . . . . 1 6 6 5 5 5 5 5 5 5 5 5 1 6 9 9 8 8 3 3 10 Ballistic Gun 2 | . 28 20 5 . . 5 7 7 7 6 5 . . 6 8 6 6 5 5 4 . . . . 4 2 . . . . . . . . . Slashing Weapon 2 | . . . . . . 1 5 7 7 7 5 . 5 . . 6 6 4 . . . . . . . 2 5 4 4 4 4 4 3 3 2 Naked Turns . | . . . . . . . . . . . . . . . . . . . . . . . . . . . . . . . . . . . . Heaviest Build 104 | 3 3 6 9 9 10 28 32 28 28 32 33 34 35 36 47 47 40 41 40 48 42 42 42 42 51 67 52 73 78 78 93 93 98 97 104 Greatest Support 106 | 3 4 8 17 18 12 33 33 33 33 33 35 35 45 45 47 47 47 49 49 51 42 42 47 47 65 70 69 78 78 78 100 100 100 100 106 Greatest Overweight (x) 1 | . . 1 . . . . . . . . . . . . . . . . . 1 . . . . . . . . . . 1 . . . 1 Average Overweight (x) . | . . . . . . . . . . . . . . . . . . . . . . . . . . . . . . . . . . . . Largest Inventory Capacity 10 | 4 4 4 4 4 4 8 8 8 8 8 8 8 8 8 8 8 8 8 8 8 8 8 8 8 8 8 8 8 8 10 10 10 10 10 10 Average Capacity 8 | 4 4 4 4 4 4 5 8 8 8 8 8 8 8 8 8 8 8 8 8 8 8 8 8 8 8 8 8 8 8 9 10 10 10 10 10 Most Carried 10 | 3 4 4 4 3 3 7 8 8 8 8 8 8 8 8 8 8 8 8 8 8 8 8 8 8 8 8 8 8 8 10 10 10 10 10 10 Average Carried 7 | 1 3 3 2 3 3 4 7 8 8 7 7 8 7 7 8 8 8 7 8 7 8 7 7 8 6 7 6 7 7 7 7 9 8 9 9 Final Capacity 10 | 4 4 4 4 4 4 8 8 8 8 8 8 8 8 8 8 8 8 8 8 8 8 8 8 8 8 8 8 8 8 10 10 10 10 10 10 Final Carried 10 | 3 4 2 3 3 3 7 8 8 8 8 8 8 8 8 8 8 8 8 8 8 8 8 8 8 8 6 8 8 8 8 10 10 10 7 9 Class Distribution -------------------- 24% | Hacker-Sprinter 20% | Hacker-Scout 17% | Machinist-Sprinter 8% | Sprinter 8% | Wizard-Scout 8% | Scavenger-Sprinter 6% | Machinist-Scout Dominant Class ---------------- Mutant | -10/Materials Mutant | -10/Mines Mutant | -9/Materials Sprinter | -9/Storage Sprinter | -9/Recycling Sprinter | -7/Factory Sprinter | -7/Lower Caves Sprinter | -7/Lower Caves Sprinter | -7/Data Miner Sprinter | -6/Proximity Caves Hacker-Sprinter | -6/Factory Hacker-Sprinter | -6/Waste Hacker-Sprinter | -6/Factory Hacker-Sprinter | -6/Extension Hacker-Sprinter | -6/Cetus Machinist-Sprinter | -6/Archives Machinist-Sprinter | -6/Hub_04(d) Hacker-Sprinter | -5/Factory Hacker-Sprinter | -5/Waste Hacker-Sprinter | -5/Factory Hacker-Scout | -5/Upper Caves Hacker-Scout | -5/Upper Caves Hacker-Scout | -5/Warlord Hacker-Scout | -4/Proximity Caves Machinist-Scout | -4/Factory Hacker-Scout | -4/Armory Hacker-Scout | -4/Lab Wizard-Scout | -3/Research Wizard-Scout | -3/Quarantine Hacker-Scout | -3/Section 7 Hacker-Scout | -2/Research Hacker-Scout | -2/Testing Hacker-Scout | -1/Access Machinist-Sprinter | -1/Command Scavenger-Sprinter | -1/Access_0 Resources | -11 -10 -10 -9 -9 -9 -7 -7 -7 -7 -6 -6 -6 -6 -6 -6 -6 -6 -5 -5 -5 -5 -5 -5 -4 -4 -4 -4 -3 -3 -3 -2 -2 -1 -1 -1 ----------- Run | Scr Mat Min Mat Sto Rec Fac Low Low Dat Pro Fac Was Fac Ext Cet Arc Hub Fac Was Fac Upp Upp War Pro Fac Arm Lab Res Qua Sec Res Tes Acc Com Ac0 Matter Collected 3653 | 213 41 17 59 20 286 93 44 71 . 68 70 . 184 242 109 112 15 86 50 60 . . 36 . . 128 . 106 100 160 160 50 87 326 660 Remotely . | . . . . . . . . . . . . . . . . . . . . . . . . . . . . . . . . . . . . Salvage Created 12305 | . 58 4 113 20 227 65 70 . . 139 213 . 555 113 302 . 467 232 . 220 . . . . . 178 . 170 148 300 471 88 594 3689 3869 Parts 530 | . 2 3 5 . 16 3 4 . . 7 11 . 27 . 10 . 32 13 . 6 . . . . . 10 . 7 5 17 7 6 22 133 184 Haulers Intercepted 20 | . 1 . 2 . . 1 . . . . 2 . 2 1 . . . 1 . 1 . . . . . . . 1 1 . 4 . 3 . . Recyclers Shooed 5 | . . 1 . . 2 . . . . . . . 2 . . . . . . . . . . . . . . . . . . . . . . Parts Field Recycled . | . . . . . . . . . . . . . . . . . . . . . . . . . . . . . . . . . . . . Retrieved Matter . | . . . . . . . . . . . . . . . . . . . . . . . . . . . . . . . . . . . . Parts Self-Destructed 21 | . . . . . . . 1 2 . 6 . . . . . . . . . . . . 12 . . . . . . . . . . . . Prevented 8 | . . . . . . . 1 2 . . . . . . . . . . . . . . 5 . . . . . . . . . . . . Kills | -11 -10 -10 -9 -9 -9 -7 -7 -7 -7 -6 -6 -6 -6 -6 -6 -6 -6 -5 -5 -5 -5 -5 -5 -4 -4 -4 -4 -3 -3 -3 -2 -2 -1 -1 -1 ------- Run | Scr Mat Min Mat Sto Rec Fac Low Low Dat Pro Fac Was Fac Ext Cet Arc Hub Fac Was Fac Upp Upp War Pro Fac Arm Lab Res Qua Sec Res Tes Acc Com Ac0 Combat Hostiles Destroyed 127 | . . 3 4 . 9 . . . . 3 . . 1 3 3 . 6 1 . 1 . . . . . 2 . 1 . 2 2 . 3 41 42 Melee 95 | . . . . . . . . . . 1 . . . . . . . 1 . 1 . . . . . 2 . 1 . 2 2 . 3 41 41 Guns 2 | . . 1 . . 1 . . . . . . . . . . . . . . . . . . . . . . . . . . . . . . AOE 23 | . . 2 4 . 8 . . . . 2 . . 1 3 . . 2 . . . . . . . . . . . . . . . . . 1 Classes Destroyed 18 | . 1 1 . 1 3 . 2 . . 1 1 . 2 . 1 . 1 . . . . . . . . 2 . . . . 1 . . 1 . Worker 3 | . . . . . . . . . . . . . . . . . 1 . . . . . . . . . . . . . . . . 2 . Builder 5 | . . . . . . . . . . . . . 1 . . . 4 . . . . . . . . . . . . . . . . . . Hauler 20 | . 1 . 2 . . 1 . . . . 2 . 2 1 . . . 1 . 1 . . . . . . . 1 1 . 4 . 3 . . Recycler 5 | . . . . . 3 . . . . . . . 2 . . . . . . . . . . . . . . . . . . . . . . Minesweeper 1 | . . . . . . . 1 . . . . . . . . . . . . . . . . . . . . . . . . . . . . Operator 3 | . . . . 1 . 1 . . . . . . . . . . 1 . . . . . . . . . . . . . . . . . . Drone 8 | . . . . . 8 . . . . . . . . . . . . . . . . . . . . . . . . . . . . . . Watcher 25 | . . . . . . . . . . . 1 . 1 1 . . 3 3 . 1 . . . . . 1 . . 1 4 . 2 3 4 . Swarmer 21 | . . 3 4 . 1 . . . . 2 . . . 3 . . 3 . . . . . . . . . . . . . . . . 5 . Grunt 20 | . . . . . 1 . . . . . . . . . 1 . 2 1 . . . . . . . . . 1 . 1 1 . 1 11 . Duelist 2 | . . . . . . . . . . . . . . . . . . . . . . . . . . 1 . . . . . . . 1 . Researcher 1 | . . . . . . . 1 . . . . . . . . . . . . . . . . . . . . . . . . . . . . Sentry 5 | . . . . . . . . . . . . . . . . . 1 . . 1 . . . . . . . . . 1 . . . 2 . Specialist 1 | . . . . . . . . . . . . . . . . . . . . . . . . . . 1 . . . . . . . . . Hunter 4 | . . . . . . . . . . . . . 1 . . . . . . . . . . . . . . . . . . . . 3 . Programmer 14 | . . . . . . . . . . 1 . . . . . . . . . . . . . . . . . . . . . . 2 11 . Cetus Guard 2 | . . . . . . . . . . . . . . . 2 . . . . . . . . . . . . . . . . . . . . M Guard 2 | . . . . . . . . . . . . . . . . . . . . . . . . . . . . . . . . . . 2 . Enhanced Grunt 30 | . . . . . . . . . . 1 . . . . . . . . . . . . . . . . . . . . . . . . 29 Enhanced Sentry 2 | . . . . . . . . . . . . . . . . . . . . . . . . . . . . . . . . . . . 2 Enhanced Hunter 4 | . . . . . . . . . . . . . . . . . . . . . . . . . . . . . . . . . . . 4 Combat Programmer 2 | . . . . . . . . . . . . . . . . . . . . . . . . . . . . . . . . . . 2 . Striker 1 | . . . . . . . . . . . . . . . . . . . . . . . . . . . . . . . 1 . . . . Alpha 7 2 | . . . . . . . . . . . . . . . . . . . . . . . . . . . . . . . . . . 2 . Best Kill Streak 13 | . 1 3 4 . 8 1 1 . . 2 1 . 3 3 1 . 13 2 . 1 . . . . . 1 . 2 2 2 2 1 2 7 8 Combat Bots Only 8 | . . 3 4 . 6 . . . . 2 . . 1 3 1 . 6 1 . 1 . . . . . 1 . 1 . 1 1 . 1 7 8 Max Kills in Single Turn 8 | . 1 1 3 1 3 1 1 . . 1 1 . 1 1 1 . 8 1 . 1 . . . . . 1 . 1 1 1 1 1 1 1 1 Gunslinging . | . . . . . . . . . . . . . . . . . . . . . . . . . . . . . . . . . . . . Exploded 3 | . . 1 3 . 2 . . . . 1 . . 1 1 . . 2 . . . . . . . . . . . . . . . . . 1 Melee 1 | . . . . . . . . . . 1 . . . . . . . 1 . 1 . . . . . 1 . 1 . 1 1 . 1 1 1 Uniques/NPCs Destroyed 9 | . . . . . . . . . . . . . . . 1 . . . . . . . . . . . . . . . . . . 1 7 A7 (-6/Cetus) MAIN.C Shell (-1/Command) MAIN.C (-1/Command) A5 (-1/Access_0) A8 (-1/Access_0) A4 (-1/Access_0) A6 (-1/Access_0) A2 (-1/Access_0) A3 (-1/Access_0) Architect (-1/Access_0) Combat | -11 -10 -10 -9 -9 -9 -7 -7 -7 -7 -6 -6 -6 -6 -6 -6 -6 -6 -5 -5 -5 -5 -5 -5 -4 -4 -4 -4 -3 -3 -3 -2 -2 -1 -1 -1 -------- Run | Scr Mat Min Mat Sto Rec Fac Low Low Dat Pro Fac Was Fac Ext Cet Arc Hub Fac Was Fac Upp Upp War Pro Fac Arm Lab Res Qua Sec Res Tes Acc Com Ac0 Damage Taken 9452 | . 16 409 129 108 45 14 30 31 . 40 . . 200 140 200 50 212 66 . 51 47 . . 99 317 878 . 41 90 788 206 61 148 863 4173 Core 859 | . . 100 47 21 6 . 15 14 . 12 . . 16 . 76 . 138 . . . . . . . 72 29 . . . . . . . 29 284 Absorbed by Shields 5474 | . . . . . . . . . . . . . . 23 164 . . . . . . . . . . 34 . . . . 212 61 140 839 4001 Core Remaining (%) 87 | 100 . 60 . . 81 . . . . 94 . . . . . . 72 . . . . . . 100 . . 91 . . 90 . 100 . . 89 Volleys Fired 131 | . 6 7 17 5 12 6 . . . 2 . . 3 31 21 3 2 2 . . . . . . . . . . . . . . . 2 12 Largest 2 | . 2 2 1 1 1 1 . . . 1 . . 1 1 2 1 1 1 . . . . . . . . . . . . . . . 1 1 Hottest 70 | . 40 40 45 45 45 48 . . . 39 . . 50 36 70 35 35 35 . . . . . . . . . . . . . . . 46 46 Shots Fired 143 | . 12 10 17 5 12 6 . . . 2 . . 3 30 25 3 2 2 . . . . . . . . . . . . . . . 2 12 Gun 79 | . 12 8 11 5 3 3 . . . . . . . 22 8 3 2 2 . . . . . . . . . . . . . . . . . Cannon 20 | . . . . . . 3 . . . . . . . . 17 . . . . . . . . . . . . . . . . . . . . Launcher 44 | . . 2 6 . 9 . . . . 2 . . 3 8 . . . . . . . . . . . . . . . . . . . 2 12 Special . | . . . . . . . . . . . . . . . . . . . . . . . . . . . . . . . . . . . . Kinetic 66 | . 12 8 6 . . 3 . . . . . . . 22 8 3 2 2 . . . . . . . . . . . . . . . . . Thermal . | . . . . . . . . . . . . . . . . . . . . . . . . . . . . . . . . . . . . Explosive 41 | . . 2 6 . 9 . . . . 2 . . . 8 . . . . . . . . . . . . . . . . . . . 2 12 Electromagnetic 36 | . . . 5 5 3 3 . . . . . . 3 . 17 . . . . . . . . . . . . . . . . . . . . Robot Hit Streak 17 | . 5 2 3 5 1 3 . . . 2 . . . 13 13 16 . 17 . . . . . . . . . . . . . . . . 1 Robot Miss Streak 6 | . 2 2 4 5 6 1 . . . . . . . 1 1 . . . . . . . . . . . . . . . . . . . 1 Penetration Max . | . . . . . . . . . . . . . . . . . . . . . . . . . . . . . . . . . . . . Secondary Targets . | . . . . . . . . . . . . . . . . . . . . . . . . . . . . . . . . . . . . Shots Hit Robots 654 | . 9 5 9 2 1 4 2 . . 3 4 . 16 25 33 3 8 13 . 6 . . . . 2 7 . 3 4 16 17 7 23 143 289 Core Hits 415 | . 2 7 10 2 17 3 2 . . 6 3 . 13 10 9 . 18 4 . 4 . . . . . 5 . 2 2 7 6 4 9 61 209 Critical Hits 157 | . . . 1 . . . . . . . 1 . . . 1 1 1 . . . . . . . . . . . 1 4 5 . 6 35 101 Critical Kills 28 | . . . . . . . . . . . 1 . . . . . . . . . . . . . . . . . . 1 1 . 4 8 13 Critical Parts Destroyed 80 | . . . 1 . . . . . . . . . . . 1 1 1 . . . . . . . . . . . 1 1 4 . 2 22 46 Melee Attacks 857 | . . . . . . 3 3 4 . 3 8 . 30 . 11 . 20 27 . 9 2 4 4 8 11 18 3 10 18 56 20 21 34 170 360 Impact . | . . . . . . . . . . . . . . . . . . . . . . . . . . . . . . . . . . . . Slashing 806 | . . . . . . 3 3 4 . 3 8 . 30 . 11 . 20 17 . . . . . . . 15 3 10 18 56 20 21 34 170 360 Piercing 51 | . . . . . . . . . . . . . . . . . . 10 . 9 2 4 4 8 11 3 . . . . . . . . . Sneak Attacks 73 | . . . . . . 1 2 . . 1 3 . 6 . 11 . 5 4 . 3 . . . . 1 1 . 1 2 1 8 . 6 8 9 Combat Hostiles 20 | . . . . . . . . . . . . . . . . . . 1 . . . . . . . . . . . 1 2 . 1 6 9 Follow-up Attacks . | . . . . . . . . . . . . . . . . . . . . . . . . . . . . . . . . . . . . Damage Inflicted 59706 | . 51 344 392 41 724 144 255 . . 408 375 . 1354 1034 1656 54 2436 829 . 535 . . . . 156 625 . 373 681 1461 2754 479 3158 15651 23736 Guns 917 | . 51 49 94 41 18 54 . . . . . . . 377 149 54 . 30 . . . . . . . . . . . . . . . . . Cannons 410 | . . . . . . . . . . . . . . . 410 . . . . . . . . . . . . . . . . . . . . Explosions 5130 | . . 288 298 . 706 . . . . 274 . . 257 657 219 . 1679 . . . . . . . . . . . . . . . . 51 701 Melee 52778 | . . . . . . 90 255 . . 134 375 . 1097 . 878 . 757 799 . 535 . . . . 156 625 . 373 681 1461 2754 479 3158 15600 22571 Ramming 471 | . . 7 . . . . . . . . . . . . . . . . . . . . . . . . . . . . . . . . 464 Kinetic 746 | . 51 49 36 . . . . . . . . . . 377 149 54 . 30 . . . . . . . . . . . . . . . . . Thermal 252 | . . . . . . . . . . . . . 33 . 219 . . . . . . . . . . . . . . . . . . . . Explosive 2975 | . . 288 298 . 706 . . . . 274 . . . 657 . . . . . . . . . . . . . . . . . . . 51 701 Electromagnetic 2484 | . . . 58 41 18 54 . . . . . . 224 . 410 . 1679 . . . . . . . . . . . . . . . . . . Impact . | . . . . . . . . . . . . . . . . . . . . . . . . . . . . . . . . . . . . Slashing 51688 | . . . . . . 90 255 . . 134 375 . 1097 . 878 . 757 400 . . . . . . . 625 . 373 681 1461 2754 479 3158 15600 22571 Piercing 1090 | . . . . . . . . . . . . . . . . . . 399 . 535 . . . . 156 . . . . . . . . . . Highest Corruption 10 | . . . . . . . 1 1 1 1 . . 3 3 3 3 4 . . . . . 1 1 2 2 2 . . . 4 4 1 6 10 Average Corruption 4 | . . . . . . . 1 1 1 1 . . 1 3 3 3 3 . . . . . 1 1 2 2 2 . . . 2 4 1 4 9 Corruption Purged . | . . . . . . . . . . . . . . . . . . . . . . . . . . . . . . . . . . . . Effects 242 | . . . . . . . . 1 . 2 . . 2 13 4 2 8 . . . . . . 1 2 3 . . . . 7 3 . 38 156 Message Errors 51 | . . . . . . . . 1 . . . . 1 5 2 . 3 . . . . . . . 2 1 . . . . 3 . . 7 26 Matter Fused 39 | . . . . . . . . . . . . . . 3 1 1 2 . . . . . . . . . . . . . . 2 . 10 20 Heat Flow Errors 16 | . . . . . . . . . . . . . . 2 . . . . . . . . . . . . . . . . 1 . . . 13 Energy Discharges 28 | . . . . . . . . . . 2 . . 1 2 1 . . . . . . . . . . 1 . . . . 1 . . 4 16 Data Loss (minor) 18 | . . . . . . . . . . . . . . . . 1 . . . . . . . 1 . . . . . . 2 . . 7 7 Data Loss (major) 7 | . . . . . . . . . . . . . . . . . . . . . . . . . . . . . . . . . . 2 5 Alerts 1 | . . . . . . . . . . . . . . . . . . . . . . . . . . . . . . . . . . . 1 Misdirections 37 | . . . . . . . . . . . . . . . . . . . . . . . . . . . . . . . . . . . 37 Targeting Errors 44 | . . . . . . . . . . . . . . . . . 3 . . . . . . . . 1 . . . . . 1 . 8 31 Weapon Failures 1 | . . . . . . . . . . . . . . 1 . . . . . . . . . . . . . . . . . . . . . Overload Shots . | . . . . . . . . . . . . . . . . . . . . . . . . . . . . . . . . . . . . Overflow Damage 4526 | . . 52 18 . 10 . . . . 33 60 . 189 128 43 . 274 77 . 122 . . . . . 213 . 137 36 219 433 12 382 1308 780 Projectiles . | . . . . . . . . . . . . . . . . . . . . . . . . . . . . . . . . . . . . Explosions 516 | . . 52 18 . 10 . . . . 33 . . 37 128 . . 238 . . . . . . . . . . . . . . . . . . Melee 4010 | . . . . . . . . . . . 60 . 152 . 43 . 36 77 . 122 . . . . . 213 . 137 36 219 433 12 382 1308 780 Knockbacks 12 | . . . . . . . . . . . . . . . . . . . . . . . . . . . . . . . . . . . 12 Impact 12 | . . . . . . . . . . . . . . . . . . . . . . . . . . . . . . . . . . . 12 Kinetic . | . . . . . . . . . . . . . . . . . . . . . . . . . . . . . . . . . . . . Secondary . | . . . . . . . . . . . . . . . . . . . . . . . . . . . . . . . . . . . . Self-Inflicted Damage 401 | . . 93 24 . 42 . . . . . . . . 95 . . 109 . . . . . . . . . . . . . . . . . 38 Shots 9 | . . 2 1 . 2 . . . . . . . . 2 . . 1 . . . . . . . . . . . . . . . . . 1 Rammed 77 | . . 1 . . . . . . . . . . . . . . . . . . . . . . . . . . . . . . . . 76 Targets Rammed 77 | . . 1 . . . . . . . . . . . . . . . . . . . . . . . . . . . . . . . . 76 Kicked . | . . . . . . . . . . . . . . . . . . . . . . . . . . . . . . . . . . . . Crushed . | . . . . . . . . . . . . . . . . . . . . . . . . . . . . . . . . . . . . Highest Temperature 182 | . . . 12 26 6 48 . . . 14 . 38 56 182 10 . . . . . . . . . . 12 87 60 40 . 43 . . . 170 Average Temperature 27 | . . . 5 14 4 23 . . . 9 . 15 24 93 9 . . . . . . . . . . 5 37 24 23 . 43 . . . 78 Received Heat Transfer 637 | . 9 42 42 15 . 9 . . . 18 . . 24 . 4 . 9 18 . 9 . . . . 21 95 . . 9 36 . 8 . 28 241 Siege Activations . | . . . . . . . . . . . . . . . . . . . . . . . . . . . . . . . . . . . . Robots Corrupted 7 | . . . . . . . . . . . . . . . 3 . 4 . . . . . . . . . . . . . . . . . . Combat Hostiles 7 | . . . . . . . . . . . . . . . 3 . 4 . . . . . . . . . . . . . . . . . . Parts Fried 16 | . . . . 2 . . . . . . . . 1 . 3 . 10 . . . . . . . . . . . . . . . . . . Impact Corruptions 12 | . . . . . . . . . . . . . . . . . . . . . . . . . . . . . . . . . . . 12 Robots Melted . | . . . . . . . . . . . . . . . . . . . . . . . . . . . . . . . . . . . . Combat Hostiles . | . . . . . . . . . . . . . . . . . . . . . . . . . . . . . . . . . . . . Parts Melted 2 | . . . . . . . 2 . . . . . . . . . . . . . . . . . . . . . . . . . . . . Heat Transferred 200 | . . . . . . . . . . . . . 50 . 150 . . . . . . . . . . . . . . . . . . . . Parts Sabotaged . | . . . . . . . . . . . . . . . . . . . . . . . . . . . . . . . . . . . . Parts Stolen . | . . . . . . . . . . . . . . . . . . . . . . . . . . . . . . . . . . . . Parts Stripped . | . . . . . . . . . . . . . . . . . . . . . . . . . . . . . . . . . . . . Power Chain Reactions 3 | . . . . . . . . . . . . . 2 . 1 . . . . . . . . . . . . . . . . . . . . Missiles Intercepted . | . . . . . . . . . . . . . . . . . . . . . . . . . . . . . . . . . . . . Alert | -11 -10 -10 -9 -9 -9 -7 -7 -7 -7 -6 -6 -6 -6 -6 -6 -6 -6 -5 -5 -5 -5 -5 -5 -4 -4 -4 -4 -3 -3 -3 -2 -2 -1 -1 -1 ------- Run | Scr Mat Min Mat Sto Rec Fac Low Low Dat Pro Fac Was Fac Ext Cet Arc Hub Fac Was Fac Upp Upp War Pro Fac Arm Lab Res Qua Sec Res Tes Acc Com Ac0 Peak Influence 1105 | . 7 70 279 304 177 1105 . . . . 401 185 447 291 274 166 792 761 266 457 . . . . 495 337 . 76 95 306 264 200 496 687 . Average Influence 211 | . 1 13 120 211 132 1049 . . . . 175 176 314 60 110 112 192 452 266 154 . . . . 76 263 . 40 51 102 171 117 245 361 . Maximum Alert Level 4 | . . . 1 1 . 4 . . . . 2 . 2 1 1 . 3 3 1 2 . . . . 2 1 . . . 1 1 1 2 2 . Low Security (%) 60 | 100 100 100 92 36 100 . . . . . 80 100 12 92 78 100 79 . . 44 . . . . 89 14 . 100 100 90 50 98 49 44 . Level 1 24 | . . . 7 63 . . . . . . . . 64 7 21 . . 18 100 53 . . . . . 85 . . . 9 49 1 17 34 . Level 2 11 | . . . . . . . . . . . 19 . 22 . . . 15 81 . 2 . . . . 10 . . . . . . . 32 20 . Level 3 3 | . . . . . . 97 . . . . . . . . . . 5 . . . . . . . . . . . . . . . . . . Level 4 . | . . . . . . 2 . . . . . . . . . . . . . . . . . . . . . . . . . . . . . Level 5 . | . . . . . . . . . . . . . . . . . . . . . . . . . . . . . . . . . . . . High Security . | . . . . . . . . . . . . . . . . . . . . . . . . . . . . . . . . . . . . Max Security . | . . . . . . . . . . . . . . . . . . . . . . . . . . . . . . . . . . . . Squads Dispatched 50 | . . . . . 1 3 . . . . 1 . 3 1 . . 5 3 . 2 . . . . 1 2 . 7 1 3 6 3 4 4 . Investigation 15 | . . . . . . 1 . . . . 1 . 1 . . . . 2 . 2 . . . . . . . 3 . . 2 1 . 2 . Extermination 8 | . . . . . . . . . . . . . . . . . . . . . . . . . 1 1 . . 1 2 . . 1 2 . Reinforcement 26 | . . . . . 1 1 . . . . . . 2 1 . . 5 1 . . . . . . . 1 . 4 . 1 4 2 3 . . Assault 1 | . . . . . . 1 . . . . . . . . . . . . . . . . . . . . . . . . . . . . . Garrison . | . . . . . . . . . . . . . . . . . . . . . . . . . . . . . . . . . . . . Intercept . | . . . . . . . . . . . . . . . . . . . . . . . . . . . . . . . . . . . . Construction Impeded 2 | . . . . . 1 . . . . . . . . . . . 1 . . . . . . . . . . . . . . . . . . Haulers Reinforced 8 | . . . . . . . . . . . . . 1 . . . . 1 . . . . . . . . . 1 . . 3 . 2 . . Stealth | -11 -10 -10 -9 -9 -9 -7 -7 -7 -7 -6 -6 -6 -6 -6 -6 -6 -6 -5 -5 -5 -5 -5 -5 -4 -4 -4 -4 -3 -3 -3 -2 -2 -1 -1 -1 --------- Run | Scr Mat Min Mat Sto Rec Fac Low Low Dat Pro Fac Was Fac Ext Cet Arc Hub Fac Was Fac Upp Upp War Pro Fac Arm Lab Res Qua Sec Res Tes Acc Com Ac0 Distress Signals 61 | . . 1 . 1 . 1 . . . . . . 2 2 2 . 3 2 . . . . 1 2 3 1 . 2 . 1 13 2 2 20 . Communications Jammed . | . . . . . . . . . . . . . . . . . . . . . . . . . . . . . . . . . . . . Distress Signals . | . . . . . . . . . . . . . . . . . . . . . . . . . . . . . . . . . . . . Times Spotted 509 | . 2 6 13 11 15 12 1 4 . 4 2 4 26 22 17 2 21 13 . 6 13 . . 3 33 38 . 4 12 40 31 20 17 54 63 Peak Tracking Total 24 | . 2 5 8 9 4 5 1 4 . 2 1 4 6 4 5 1 7 5 . 2 4 . . 3 18 18 . 2 7 12 6 8 3 6 24 Tactical Retreats 71 | . . . 3 3 . 1 . 1 . . . . 7 2 . . 4 1 . 1 1 . . . 6 10 . . 2 6 5 2 2 1 13 Traps | -11 -10 -10 -9 -9 -9 -7 -7 -7 -7 -6 -6 -6 -6 -6 -6 -6 -6 -5 -5 -5 -5 -5 -5 -4 -4 -4 -4 -3 -3 -3 -2 -2 -1 -1 -1 ------- Run | Scr Mat Min Mat Sto Rec Fac Low Low Dat Pro Fac Was Fac Ext Cet Arc Hub Fac Was Fac Upp Upp War Pro Fac Arm Lab Res Qua Sec Res Tes Acc Com Ac0 Traps Triggered 27 | . . . . 1 . 1 . . . . 1 . 5 2 . . 6 1 . . . . . . 1 1 . . . . . . 1 7 . Indirectly 4 | . . . . . . . . . . . . . . . . . 4 . . . . . . . . . . . . . . . . . . Trap Hack Attempts . | . . . . . . . . . . . . . . . . . . . . . . . . . . . . . . . . . . . . Triggered . | . . . . . . . . . . . . . . . . . . . . . . . . . . . . . . . . . . . . Disarmed 7 | . . . . . . . . . . . . . . 3 . . . . . . . . . . . . . . . 4 . . . . . Reprogrammed 23 | . . . 4 . . 6 . . . . . . . 7 . . . 6 . . . . . . . . . . . . . . . . . Reused 3 | . . . . . . 1 . . . . . . . 1 . . . 1 . . . . . . . . . . . . . . . . . Traps Extracted . | . . . . . . . . . . . . . . . . . . . . . . . . . . . . . . . . . . . . Installed . | . . . . . . . . . . . . . . . . . . . . . . . . . . . . . . . . . . . . Triggered 16 | . . . . . . 1 4 2 . . . . . 1 . . . 1 . . . . 5 . . . . . . . . . . 2 . Machines | -11 -10 -10 -9 -9 -9 -7 -7 -7 -7 -6 -6 -6 -6 -6 -6 -6 -6 -5 -5 -5 -5 -5 -5 -4 -4 -4 -4 -3 -3 -3 -2 -2 -1 -1 -1 ---------- Run | Scr Mat Min Mat Sto Rec Fac Low Low Dat Pro Fac Was Fac Ext Cet Arc Hub Fac Was Fac Upp Upp War Pro Fac Arm Lab Res Qua Sec Res Tes Acc Com Ac0 Machines Disabled 72 | . . . 1 2 . 1 . . . . . . . 2 3 2 19 2 . . . 1 . 4 . 2 1 . 4 6 . 5 . 4 13 Max in Single Turn 15 | . . . 1 1 . . . . . . . . . 2 1 . 15 1 . . . 1 . 1 . 1 1 . 1 1 . 1 . 2 1 Garrison Access 16 | . . . . . . . . . . . . . 1 . . . 1 2 . 2 . . . . 2 . . . 1 . 3 1 3 . . Phase Generator 1 | . . . . . . . . . . . . . . . . . . . . . . . . . . . . . . . . . . 1 . Network Hub 2 | . . . . . . . . . . . . . . . . . 2 . . . . . . . . . . . . . . . . . . Machines Sabotaged . | . . . . . . . . . . . . . . . . . . . . . . . . . . . . . . . . . . . . Garrisons Compromised . | . . . . . . . . . . . . . . . . . . . . . . . . . . . . . . . . . . . . Overloaded Fab Kills . | . . . . . . . . . . . . . . . . . . . . . . . . . . . . . . . . . . . . Fab Network Shutdowns 4 | . . . . . . . . . . . 1 . . . . . . 1 . 1 . . . . 1 . . . . . . . . . . Hacking | -11 -10 -10 -9 -9 -9 -7 -7 -7 -7 -6 -6 -6 -6 -6 -6 -6 -6 -5 -5 -5 -5 -5 -5 -4 -4 -4 -4 -3 -3 -3 -2 -2 -1 -1 -1 --------- Run | Scr Mat Min Mat Sto Rec Fac Low Low Dat Pro Fac Was Fac Ext Cet Arc Hub Fac Was Fac Upp Upp War Pro Fac Arm Lab Res Qua Sec Res Tes Acc Com Ac0 Machines Accessed 162 | . 2 . 2 4 3 10 . . 4 . 8 . 9 9 2 . 4 7 . 14 . 1 5 . 9 8 . 4 5 14 7 7 13 9 2 Terminals 107 | . 2 . 2 4 3 8 . . . . 5 . 6 9 2 . 3 4 . 8 . . . . 4 4 . 2 3 13 2 5 9 9 . Fabricators 20 | . . . . . . 1 . . . . 3 . 2 . . . . 1 . 3 . . . . 2 4 . 1 . . 1 1 1 . . Repair Stations 1 | . . . . . . . . . . . . . . . . . . . . 1 . . . . . . . . . . . . . . . Recycling Units . | . . . . . . . . . . . . . . . . . . . . . . . . . . . . . . . . . . . . Scanalyzers 6 | . . . . . . 1 . . . . . . . . . . . . . . . . . . 1 . . 1 1 1 1 . . . . Garrison Access 16 | . . . . . . . . . . . . . 1 . . . 1 2 . 2 . . . . 2 . . . 1 . 3 1 3 . . Total Hacks 623 | . 6 . 5 15 7 27 . . 24 . 25 . 23 37 9 . 8 30 . 59 . 1 11 . 33 34 . 19 15 43 26 32 68 41 25 Successful 386 | . 2 . 2 6 5 16 . . 24 . 9 . 9 20 3 . 8 16 . 39 . 1 11 . 26 23 . 14 11 31 8 16 37 24 25 Failed 236 | . 4 . 3 9 2 11 . . . . 16 . 14 17 6 . . 13 . 20 . . . . 7 11 . 5 4 12 18 16 31 17 . Catastrophic 35 | . 1 . . 1 . . . . . . 2 . 6 1 1 . . 2 . 3 . . . . . 2 . . . 1 5 2 7 1 . Database Lockouts 1 | . . . . . . . . . . . . . . . . . . 1 . . . . . . . . . . . . . . . . . Manual 267 | . 3 . 2 11 4 7 . . . . 7 . 11 25 8 . 4 11 . 29 . . 1 . 15 11 . 7 7 23 5 12 39 21 4 Terminals 419 | . 6 . 5 15 7 21 . . . . 13 . 16 37 9 . 7 24 . 34 . . . . 14 19 . 8 13 41 11 29 49 41 . Fabricators 94 | . . . . . . 4 . . . . 12 . 5 . . . . 2 . 18 . . . . 9 15 . 8 . . 6 2 13 . . Repair Stations 4 | . . . . . . . . . . . . . . . . . . . . 4 . . . . . . . . . . . . . . . Recycling Units . | . . . . . . . . . . . . . . . . . . . . . . . . . . . . . . . . . . . . Scanalyzers 17 | . . . . . . 2 . . . . . . . . . . . . . . . . . . 8 . . 3 1 2 1 . . . . Garrison Access 28 | . . . . . . . . . . . . . 2 . . . 1 4 . 3 . . . . 2 . . . 1 . 8 1 6 . . Terminal Hacks 225 | . 1 . 2 3 5 9 . . 24 . 3 . 4 14 3 . 6 10 . 14 . 1 11 . 7 7 . 2 6 23 2 8 16 19 25 Record 31 | . . . . . . . . . 11 . . . . . . . . . . . . . 2 . . . . . 1 . . . . . 17 Part Schematic 13 | . . . . . . 2 . . 5 . 1 . . . . . . 1 . 2 . . . . . . . . . . . . 2 . . Robot Schematic 5 | . . . . . . . . . 5 . . . . . . . . . . . . . . . . . . . . . . . . . . Robot Analysis 3 | . . . . . . . . . . . . . . . . . . . . . . . . . . . . . . . 1 . 1 1 . Prototype ID Bank 15 | . . . . . . 1 . . 3 . . . . . . . . . . . . . 7 . . 1 . . . 2 . 1 . . . Open Door 10 | . . . . . . . . . . . . . . . 1 . . . . . . 1 2 . . . . . . 5 . . . 1 . Level Access Points 3 | . . . . . . . . . . . . . . . . . 1 . . . . . . . . . . . . 1 . 1 . . . Branch Access Points 8 | . . . . . . 1 . . . . 1 . 1 . . . . . . 1 . . . . 1 . . 1 . . 1 . 1 . . Emergency Access Points 1 | . . . . . . . . . . . . . . . . . . . . . . . . . . . . . . . . . . 1 . Machine Index 6 | . . . . . . . . . . . . . . 1 . . . 1 . . . . . . 1 . . 1 . . . . 1 1 . Terminal Index 7 | . . . . . 1 1 . . . . . . . 1 . . . . . 1 . . . . . . . . 1 1 . . 1 . . Fabricator Index 6 | . . . . . . . . . . . 1 . . . . . . . . 1 . . . . 1 1 . . 1 . . . . 1 . Repair Station Index 1 | . . . 1 . . . . . . . . . . . . . . . . . . . . . . . . . . . . . . . . Alert Level 10 | . . . . . 1 . . . . . . . . 1 . . . 1 . 1 . . . . 1 . . . . 2 . 1 1 1 . Unreport Threat 29 | . . . . . 2 . . . . . . . 3 3 2 . 1 1 . 2 . . . . 1 . . . 1 2 . 2 4 5 . Locate Traps 20 | . 1 . . 1 . 1 . . . . . . . 2 . . 2 2 . 1 . . . . . 2 . . . 2 . 1 1 4 . Disarm Traps 2 | . . . . . . . . . . . . . . 1 . . . . . . . . . . . . . . . 1 . . . . . Reprogram Traps 5 | . . . 1 . . 1 . . . . . . . 2 . . . 1 . . . . . . . . . . . . . . . . . Security Status 1 | . . . . . . . . . . . . . . . . . . . . . . . . . . . . . . 1 . . . . . Recall Investigation 4 | . . . . . . . . . . . . . . . . . . 1 . 2 . . . . . . . . . . . . . 1 . Recall Extermination 5 | . . . . . . . . . . . . . . . . . . . . . . . . . 1 1 . . . 2 . . 1 . . Recall Reinforcements 2 | . . . . . . . . . . . . . . 1 . . . . . . . . . . . . . . . 1 . . . . . Hauler Manifests 13 | . . . . 1 1 . . . . . . . . 1 . . 2 1 . 1 . . . . 1 1 . . . 2 . 1 1 . . Registered Prototypes 7 | . . . . . . . . . . . . . . . . . . 1 . 1 . . . . . 1 . . 1 1 . . 1 1 . Zone Layout 7 | . . . . 1 . 2 . . . . . . . 1 . . . . . 1 . . . . . . . . 1 . . . 1 . . Protovariant Controls 1 | . . . . . . . . . . . . . . . . . . . . . . . . . . . . . . . . 1 . . . Disengage Seal 2 | . . . . . . . . . . . . . . . . . . . . . . . . . . . . . . . . . . 2 . Gate Test 138-A 2 | . . . . . . . . . . . . . . . . . . . . . . . . . . . . . . . . . . . 2 Gate Test 138-B 1 | . . . . . . . . . . . . . . . . . . . . . . . . . . . . . . . . . . . 1 Gate Test 138-C 2 | . . . . . . . . . . . . . . . . . . . . . . . . . . . . . . . . . . . 2 Gate Test 138-END 3 | . . . . . . . . . . . . . . . . . . . . . . . . . . . . . . . . . . . 3 Fabricator Hacks 54 | . . . . . . 4 . . . . 5 . 2 . . . . 2 . 11 . . . . 5 8 . 5 . . 1 2 9 . . Network Status 3 | . . . . . . . . . . . . . . . . . . . . 2 . . . . . . . . . . . . 1 . . Load Schematic 22 | . . . . . . 2 . . . . 2 . 1 . . . . 1 . 4 . . . . 2 4 . 1 . . 1 1 3 . . Build 29 | . . . . . . 2 . . . . 3 . 1 . . . . 1 . 5 . . . . 3 4 . 4 . . . 1 5 . . Repair Station Hacks 4 | . . . . . . . . . . . . . . . . . . . . 4 . . . . . . . . . . . . . . . Scan Component 2 | . . . . . . . . . . . . . . . . . . . . 2 . . . . . . . . . . . . . . . Repair 2 | . . . . . . . . . . . . . . . . . . . . 2 . . . . . . . . . . . . . . . Recycling Unit Hacks . | . . . . . . . . . . . . . . . . . . . . . . . . . . . . . . . . . . . . Scanalyzer 13 | . . . . . . 2 . . . . . . . . . . . . . . . . . . 4 . . 3 1 2 1 . . . . Insert Component 11 | . . . . . . 1 . . . . . . . . . . . . . . . . . . 3 . . 3 1 2 1 . . . . Analyze 2 | . . . . . . 1 . . . . . . . . . . . . . . . . . . 1 . . . . . . . . . . Garrison Access Hacks 16 | . . . . . . . . . . . . . 1 . . . 1 2 . 2 . . . . 2 . . . 1 . 3 1 3 . . Seal Access 16 | . . . . . . . . . . . . . 1 . . . 1 2 . 2 . . . . 2 . . . 1 . 3 1 3 . . Unauthorized Hacks 74 | . 1 . . 3 . 1 . . . . 1 . 2 6 . . 1 2 . 8 . . . . 8 8 . 4 3 6 1 5 9 5 . Terminals 57 | . 1 . . 3 . 1 . . . . 1 . 2 6 . . 1 2 . 3 . . . . 4 4 . 2 3 6 1 5 7 5 . Track 4 | . . . . 1 . . . . . . . . . . . . . . . . . . . . 2 . . . . . . . . 1 . Assimilate 22 | . . . . 2 . . . . . . . . 1 2 . . . 1 . 1 . . . . . 2 . 1 1 3 1 3 4 . . Botnet 26 | . 1 . . . . 1 . . . . 1 . 1 3 . . 1 1 . 2 . . . . 2 1 . 1 2 2 . 1 3 3 . Disrupt 5 | . . . . . . . . . . . . . . 1 . . . . . . . . . . . 1 . . . 1 . 1 . 1 . Fabricators 17 | . . . . . . . . . . . . . . . . . . . . 5 . . . . 4 4 . 2 . . . . 2 . . Report 1 | . . . . . . . . . . . . . . . . . . . . 1 . . . . . . . . . . . . . . . Prioritize 9 | . . . . . . . . . . . . . . . . . . . . 2 . . . . 2 3 . 1 . . . . 1 . . Siphon 7 | . . . . . . . . . . . . . . . . . . . . 2 . . . . 2 1 . 1 . . . . 1 . . Repair Stations . | . . . . . . . . . . . . . . . . . . . . . . . . . . . . . . . . . . . . Recycling Units . | . . . . . . . . . . . . . . . . . . . . . . . . . . . . . . . . . . . . Scanalyzers . | . . . . . . . . . . . . . . . . . . . . . . . . . . . . . . . . . . . . Garrison Access . | . . . . . . . . . . . . . . . . . . . . . . . . . . . . . . . . . . . . Data Cores Recovered . | . . . . . . . . . . . . . . . . . . . . . . . . . . . . . . . . . . . . Used . | . . . . . . . . . . . . . . . . . . . . . . . . . . . . . . . . . . . . Hacking Detections 95 | . 2 . 2 4 3 8 . . . . 8 . 8 6 2 . . 6 . 10 . . . . 3 4 . 2 . 7 4 5 4 7 . Full Trace Events 10 | . . . . . . 1 . . . . 1 . 1 . . . . 1 . 2 . . . . . . . . . . 2 1 . 1 . Feedback Events 2 | . . . . . . . . . . . . . 1 . . . . . . . . . . . . . . . . . 1 . . . . Corruption 2 | . . . . . . . . . . . . . 1 . . . . . . . . . . . . . . . . . 1 . . . . Feedback Blocked . | . . . . . . . . . . . . . . . . . . . . . . . . . . . . . . . . . . . . Robot Schematics Acquired 5 | . . . . . . . . . 5 . . . . . . . . . . . . . . . . . . . . . . . . . . Robots Built . | . . . . . . . . . . . . . . . . . . . . . . . . . . . . . . . . . . . . Matter . | . . . . . . . . . . . . . . . . . . . . . . . . . . . . . . . . . . . . Time . | . . . . . . . . . . . . . . . . . . . . . . . . . . . . . . . . . . . . Total Robot Build Rating . | . . . . . . . . . . . . . . . . . . . . . . . . . . . . . . . . . . . . Part Schematics Acquired 15 | . . . . . . 3 . . 5 . 1 . . . . . . 1 . 2 . . . . 1 . . . . . . . 2 . . Parts Built 25 | . . . . . . 3 . . . . 3 . 1 . . . . 1 . 4 . . . . 3 2 . 3 . . . 1 4 . . Matter 7336 | . . . . . . 314 . . . . 756 . 252 . . . . 285 . 1079 . . . . 861 1341 . 864 . . . 384 1200 . . Time 2291 | . . . . . . 157 . . . . 335 . 67 . . . . 50 . 404 . . . . 280 322 . 306 . . . 102 268 . . Total Part Build Rating 154 | . . . . . . 10 . . . . 12 . 4 . . . . 5 . 23 . . . . 21 13 . 24 . . . 8 34 . . Parts Repaired 2 | . . . . . . . . . . . . . . . . . . . . 2 . . . . . . . . . . . . . . . Time 96 | . . . . . . . . . . . . . . . . . . . . 96 . . . . . . . . . . . . . . . Parts Recycled . | . . . . . . . . . . . . . . . . . . . . . . . . . . . . . . . . . . . . Recycled Matter . | . . . . . . . . . . . . . . . . . . . . . . . . . . . . . . . . . . . . Retrieved Matter . | . . . . . . . . . . . . . . . . . . . . . . . . . . . . . . . . . . . . Retrieved Components . | . . . . . . . . . . . . . . . . . . . . . . . . . . . . . . . . . . . . Parts Scanalyzed 2 | . . . . . . 1 . . . . . . . . . . . . . . . . . . 1 . . . . . . . . . . Part Schematics Acquired 2 | . . . . . . 1 . . . . . . . . . . . . . . . . . . 1 . . . . . . . . . . Parts Damaged . | . . . . . . . . . . . . . . . . . . . . . . . . . . . . . . . . . . . . Bothacking | -11 -10 -10 -9 -9 -9 -7 -7 -7 -7 -6 -6 -6 -6 -6 -6 -6 -6 -5 -5 -5 -5 -5 -5 -4 -4 -4 -4 -3 -3 -3 -2 -2 -1 -1 -1 ------------ Run | Scr Mat Min Mat Sto Rec Fac Low Low Dat Pro Fac Was Fac Ext Cet Arc Hub Fac Was Fac Upp Upp War Pro Fac Arm Lab Res Qua Sec Res Tes Acc Com Ac0 Used RIF Installer . | . . . . . . . . . . . . . . . . . . . . . . . . . . . . . . . . . . . . Robots Hacked . | . . . . . . . . . . . . . . . . . . . . . . . . . . . . . . . . . . . . Non-combat . | . . . . . . . . . . . . . . . . . . . . . . . . . . . . . . . . . . . . Combat . | . . . . . . . . . . . . . . . . . . . . . . . . . . . . . . . . . . . . Robot Hacks Applied . | . . . . . . . . . . . . . . . . . . . . . . . . . . . . . . . . . . . . Relay Couplers Released 4 | . . . . . . . . . . . . . . . . . . . . . . . . . . . . . . . 4 . . . . Programmers 4 | . . . . . . . . . . . . . . . . . . . . . . . . . . . . . . . 4 . . . . Robots Rewired 10 | . . . . . 3 . . . . . . . . . . . . 2 . . . . . 2 . 3 . . . . . . . . . Allies Hacked 10 | . . . . . . . . . . . . . . . . . . . . . . . . . . . . . . . . . . 10 . Hacks Repelled . | . . . . . . . . . . . . . . . . . . . . . . . . . . . . . . . . . . . . Allies | -11 -10 -10 -9 -9 -9 -7 -7 -7 -7 -6 -6 -6 -6 -6 -6 -6 -6 -5 -5 -5 -5 -5 -5 -4 -4 -4 -4 -3 -3 -3 -2 -2 -1 -1 -1 -------- Run | Scr Mat Min Mat Sto Rec Fac Low Low Dat Pro Fac Was Fac Ext Cet Arc Hub Fac Was Fac Upp Upp War Pro Fac Arm Lab Res Qua Sec Res Tes Acc Com Ac0 Total Allies 105 | . . . . 2 3 . . . . 1 . . 1 10 5 . . 3 . 1 . . . 2 . 5 . 1 1 3 . 3 3 61 . Largest Group 27 | . . . . 1 3 2 . . . 1 . . 1 9 9 5 3 2 . 1 . . . 2 . 3 . 1 1 2 . 2 2 27 . Highest-Rated Group 1281 | . . . . 10 50 45 . . . 94 . . 26 361 626 470 282 86 . 10 . . . 98 . 90 . 26 26 36 . 88 70 1281 . Highest-Rated Ally 156 | . . . . 10 24 24 . . . 94 . . 26 156 156 94 94 60 . 10 . . . 49 . 30 . 26 26 26 . 44 44 90 . Total Orders 1 | . . . . . . 1 . . . . . . . . . . . . . . . . . . . . . . . . . . . . . GOTO 1 | . . . . . . 1 . . . . . . . . . . . . . . . . . . . . . . . . . . . . . Ally Attacks 615 | . . . . . 27 6 . . . 24 . . . 73 81 25 7 4 . . . . . 7 . 15 . . . . . . . 346 . Total Damage 14728 | . . . . . 94 52 . . . 464 . . . 2006 2307 977 284 145 . . . . . 614 . 277 . . . . . . . 7508 . Kills 75 | . . . . . 1 1 . . . 2 . . . 14 14 4 3 2 . . . . . 1 . . . . . . . . . 33 . Allies Corrupted 3 | . . . . . . . . . . . . . . . . . . . . . . . . . . . . . . . . . . 3 . Allies Melted 1 | . . . . . . . . . . . . . . . 1 . . . . . . . . . . . . . . . . . . . . Intel | -11 -10 -10 -9 -9 -9 -7 -7 -7 -7 -6 -6 -6 -6 -6 -6 -6 -6 -5 -5 -5 -5 -5 -5 -4 -4 -4 -4 -3 -3 -3 -2 -2 -1 -1 -1 ------- Run | Scr Mat Min Mat Sto Rec Fac Low Low Dat Pro Fac Was Fac Ext Cet Arc Hub Fac Was Fac Upp Upp War Pro Fac Arm Lab Res Qua Sec Res Tes Acc Com Ac0 Robot Analysis Total 3 | . . . . . . . . . . . . . . . . . . . . . . . . . . . . . . . 1 . 1 1 . Derelict Logs Recovered 6 | . . 1 . . . . 1 . . 1 . . . . . . . . . . 1 . . 2 . . . . . . . . . . . Drone Launches . | . . . . . . . . . . . . . . . . . . . . . . . . . . . . . . . . . . . . Drone Recoveries . | . . . . . . . . . . . . . . . . . . . . . . . . . . . . . . . . . . . . Exploration | -11 -10 -10 -9 -9 -9 -7 -7 -7 -7 -6 -6 -6 -6 -6 -6 -6 -6 -5 -5 -5 -5 -5 -5 -4 -4 -4 -4 -3 -3 -3 -2 -2 -1 -1 -1 ------------- Run | Scr Mat Min Mat Sto Rec Fac Low Low Dat Pro Fac Was Fac Ext Cet Arc Hub Fac Was Fac Upp Upp War Pro Fac Arm Lab Res Qua Sec Res Tes Acc Com Ac0 Turns Passed 15926 | 43 98 114 155 104 260 446 253 200 53 258 614 51 673 914 402 84 252 403 92 700 135 237 313 164 684 589 62 515 351 880 642 239 740 1523 2683 Spaces Moved 28371 | 74 183 120 264 296 368 839 320 498 113 453 920 119 1687 907 266 74 610 980 369 1359 357 221 834 379 1004 673 145 416 682 1807 1717 768 1292 2855 4402 Core 128 | 74 19 35 . . . . . . . . . . . . . . . . . . . . . . . . . . . . . . . . . Treads 53 | . . . . . . . . . . . . . . . . . . . . . . . . . . . . . . . . . . . 53 Legs . | . . . . . . . . . . . . . . . . . . . . . . . . . . . . . . . . . . . . Wheels . | . . . . . . . . . . . . . . . . . . . . . . . . . . . . . . . . . . . . Hover . | . . . . . . . . . . . . . . . . . . . . . . . . . . . . . . . . . . . . Flight 28190 | . 164 85 264 296 368 839 320 498 113 453 920 119 1687 907 266 74 610 980 369 1359 357 221 834 379 1004 673 145 416 682 1807 1717 768 1292 2855 4349 Fastest Speed 12 | 50 40 37 30 29 32 26 26 26 26 26 26 26 23 23 23 23 23 23 23 23 23 23 23 23 20 20 20 20 20 20 13 13 13 13 12 Average Speed 19 | 50 41 42 34 30 32 26 26 26 26 26 26 26 23 23 23 23 23 23 23 23 23 23 23 23 20 20 20 20 20 20 13 13 13 13 14 Slowest Speed 180 | 50 50 100 37 32 32 32 26 26 26 26 26 26 26 23 23 23 23 26 23 96 23 23 23 23 20 23 20 20 20 20 77 13 13 13 180 Overloaded Moves . | . . . . . . . . . . . . . . . . . . . . . . . . . . . . . . . . . . . . Propulsion Burnouts . | . . . . . . . . . . . . . . . . . . . . . . . . . . . . . . . . . . . . Robots Hopped 145 | . . 5 12 . 11 15 2 . . . 1 . 27 6 . . . 3 . 6 . . . . 6 5 . . 1 9 4 13 3 5 11 Cave-ins Triggered . | . . . . . . . . . . . . . . . . . . . . . . . . . . . . . . . . . . . . Teleports 3 | . . . . . . . . . . . . . . . . . . . . . . . . . . . . . . 1 . . . 1 1 Exploration Rate (%) 55 | 3 38 18 25 62 97 19 59 64 70 64 14 91 44 83 75 76 54 28 91 32 51 41 91 53 31 53 97 10 70 78 37 76 37 71 94 Regions Visited 35 Branch Regions 22 Pre-discovered Areas 4 | . . . . . . . 1 . 1 . . . . . . . . . . . 1 . . 1 . . . . . . . . . . . Known Exits Taken 28 | . . 1 1 1 1 1 1 1 1 1 . . 1 1 1 1 1 . . 1 1 1 1 1 1 1 1 1 1 1 1 1 1 . . Unknown Exits Taken 3 | 1 1 . . . . . . . . . . . . . . . . . . . . . . . . . . . . . . . . 1 . Scrap Searched 16 | . . 1 . . . . 1 9 . 3 . . . . . . . . . . . . . 2 . . . . . . . . . . . Spaces Dug 232 | . . . . . 18 3 1 4 . . 4 . 12 14 . . 10 7 . 2 2 3 1 3 8 7 . 7 7 26 2 9 6 3 73 Terrain Destroyed 1016 | . . 29 41 . 70 3 1 4 . 26 4 . 12 88 18 . 323 7 . 2 2 3 1 3 8 7 . 7 7 26 2 9 6 78 229 Melee 139 | . . . . . . 2 1 4 . . 4 . 12 . . . 10 7 . 2 2 3 1 3 8 7 . 7 7 26 2 9 6 3 13 Projectile 1 | . . . . . . 1 . . . . . . . . . . . . . . . . . . . . . . . . . . . . . AOE 876 | . . 29 41 . 70 . . . . 26 . . . 88 18 . 313 . . . . . . . . . . . . . . . . 75 216 Actions | -11 -10 -10 -9 -9 -9 -7 -7 -7 -7 -6 -6 -6 -6 -6 -6 -6 -6 -5 -5 -5 -5 -5 -5 -4 -4 -4 -4 -3 -3 -3 -2 -2 -1 -1 -1 --------- Run | Scr Mat Min Mat Sto Rec Fac Low Low Dat Pro Fac Was Fac Ext Cet Arc Hub Fac Was Fac Upp Upp War Pro Fac Arm Lab Res Qua Sec Res Tes Acc Com Ac0 Total 37420 | 78 193 166 297 302 485 1041 481 561 135 584 1283 137 1892 1573 563 137 688 1114 375 1719 406 401 949 443 1466 1088 171 827 859 2201 2075 852 1796 3914 6168 Wait 7389 | . 3 37 10 2 88 175 153 59 23 121 329 12 148 621 242 57 31 75 1 340 48 173 93 50 436 376 11 388 143 317 320 59 459 748 1241 Move 28064 | 73 182 109 241 295 346 812 315 497 112 452 918 118 1634 894 265 73 609 974 368 1346 356 220 833 378 992 662 144 415 679 1791 1709 744 1285 2841 4382 Hop 125 | . . 5 10 . 10 11 2 . . . 1 . 25 6 . . . 3 . 6 . . . . 5 5 . . 1 6 3 10 3 5 8 Pick Up 87 | 3 1 . 2 . . 9 2 . . 1 5 . 3 1 3 1 . 3 1 4 . 2 2 . 4 . 3 3 4 6 7 2 4 4 7 Fast Attach 148 | 2 1 3 6 . 2 8 2 1 . . 6 3 6 . 5 1 . 6 2 3 . . 7 1 4 4 4 3 5 11 2 7 2 10 31 Attach 55 | . . 3 3 . . 4 . . . . 2 . 4 . . . . 2 . 2 . . . . 5 2 2 2 . 4 3 . 3 6 8 Detach 29 | . . 1 2 . . 2 . . . . . . 3 . . . . . . 3 . . . 1 4 1 1 1 . 1 . . 1 2 6 Swap 59 | . . . 2 . . 2 2 . . 4 3 1 . 3 8 . . 2 . 2 . . . . 1 . . 1 1 2 8 . 1 7 9 Drop 167 | . . . 4 . . 9 2 . . 1 11 3 8 1 8 2 . 8 3 4 . 2 10 1 4 5 3 4 8 7 3 9 4 15 28 Fire 131 | . 6 7 17 5 12 6 . . . 2 . . 3 31 21 3 2 2 . . . . . . . . . . . . . . . 2 12 Melee 857 | . . . . . . 3 3 4 . 3 8 . 30 . 11 . 20 27 . 9 2 4 4 8 11 18 3 10 18 56 20 21 34 170 360 Ram 1 | . . 1 . . . . . . . . . . . . . . . . . . . . . . . . . . . . . . . . . Kick . | . . . . . . . . . . . . . . . . . . . . . . . . . . . . . . . . . . . . Crush 76 | . . . . . . . . . . . . . . . . . . . . . . . . . . . . . . . . . . . 76 Escape Stasis 178 | . . . . . . . . . . . . . 28 16 . . 26 . . . . . . . . 4 . . . . . . . 104 . Rewire 54 | . . . . . 27 . . . . . . . . . . . . 12 . . . . . 4 . 11 . . . . . . . . . Trap . | . . . . . . . . . . . . . . . . . . . . . . . . . . . . . . . . . . . . Miscellaneous . | . . . . . . . . . . . . . . . . . . . . . . . . . . . . . . . . . . . . Route ------- -11/Scrapyard -10/Materials (discovered 3 exits: *Mat / [*Min x2]) -10/Mines -9/Materials (discovered 2 exits: [*Mat] / *Sto) -9/Storage -9/Recycling -7/Factory (discovered 2 exits: *Low x2) -7/Lower Caves -7/Lower Caves (discovered 2 exits: *Fac / *Dat) -7/Data Miner -6/Proximity Caves -6/Factory (discovered 4 exits: Low x2 / Ext x2) -6/Waste -6/Factory (discovered 6 exits: *Fac x2 / *Low x2 / *Ext x2) -6/Extension (discovered 2 exits: *Fac / *Cet) -6/Cetus (discovered 2 exits: *Fac / *Arc) -6/Archives (discovered 2 exits: *Hub x2) -6/Hub_04(d) (discovered 4 exits: *Fac x4) -5/Factory -5/Waste -5/Factory (discovered 4 exits: *Fac x2 / *Upp x2) -5/Upper Caves -5/Upper Caves (discovered 2 exits: *Fac / *War) -5/Warlord -4/Proximity Caves -4/Factory (discovered 5 exits: *Res x2 / Upp x2 / *Arm) -4/Armory (discovered 2 exits: Res / *Lab) -4/Lab -3/Research (discovered 2 exits: *Qua x2) -3/Quarantine (discovered 2 exits: Res / *Sec) -3/Section 7 -2/Research (discovered 3 exits: *Acc / *Tes x2) -2/Testing -1/Access -1/Command (discovered 3 exits: [*Sur x2] / *Ac0) -1/Access_0 0b11 Command History --------- Turn | Location | Event 8 | -11/Scrapyard | Discovered new exit (range 16) 44 | -11/Scrapyard | Entered Materials 74 | -10/Materials | Discovered new exit (range 16) 85 | -10/Materials | Discovered new exit (range 13) 89 | -10/Materials | Discovered new exit (range 12) 142 | -10/Materials | Entered Mines 143 | -10/Mines | Assembled infested the area 146 | -10/Mines | Learned location of 1 exit from Materials 148 | -10/Mines | Assisted by a Guerilla fighting off Assembled 224 | -10/Mines | Lost 3 parts (1n2w) 249 | -10/Mines | Discovered new exit (range 5) 250 | -10/Mines | Identified exit to Materials 256 | -10/Mines | Entered Materials 256 | -9/Materials | Evolved 2 slots: Propulsion x1, Utility x1 257 | -9/Materials | Identified exit to Storage 334 | -9/Materials | Build established: Mutant 361 | -9/Materials | Discovered new exit (range 7) 411 | -9/Materials | Entered Storage 514 | -9/Storage | Used back door to open Recycling access 514 | -9/Storage | Discovered new exit (range 5) 515 | -9/Storage | Identified exit to Recycling 515 | -9/Storage | Entered Recycling 518 | -9/Recycling | Spotter reported a threat 524 | -9/Recycling | Spotter reported a threat 529 | -9/Recycling | Spotter reported a threat 529 | -9/Recycling | Spotter reported a threat 582 | -9/Recycling | Spotter reported a threat 587 | -9/Recycling | Spotter reported a threat 619 | -9/Recycling | Spotter reported a threat 638 | -9/Recycling | Spotter reported a threat 646 | -9/Recycling | Spotter reported a threat 665 | -9/Recycling | Spotter reported a threat 687 | -9/Recycling | Discovered new exit (range 19) 698 | -9/Recycling | Identified exit to Factory 718 | -9/Recycling | Spotter reported a threat 771 | -9/Recycling | Spotter reported a threat 775 | -9/Recycling | Entered Factory 775 | -7/Factory | Accompanied by 2 allies 775 | -7/Factory | Evolved 4 slots: Power x1, Propulsion x1, Utility x2 884 | -7/Factory | Build established: Sprinter 977 | -7/Factory | Fabricated Lrn. Sensor Array (x1) 1053 | -7/Factory | Fabricated Adv. Signal Interpreter (x2) 1175 | -7/Factory | First assault squad dispatched 1187 | -7/Factory | Discovered new exit (range 14) 1188 | -7/Factory | Identified exit to Lower Caves 1221 | -7/Factory | Entered Lower Caves 1303 | -7/Lower Caves | Found Alien Artifact 1303 | -7/Lower Caves | Identified Core Expander 1303 | -7/Lower Caves | Installed Core Expander, added new Propulsion slot 1317 | -7/Lower Caves | Encountered a Warlord checkpoint 1346 | -7/Lower Caves | Discovered new exit (range 8) 1474 | -7/Lower Caves | Identified exit to Lower Caves 1474 | -7/Lower Caves | Entered another Lower Caves area 1479 | -7/Lower Caves | Discovered new exit (range 11) 1558 | -7/Lower Caves | Encountered a Warlord checkpoint 1666 | -7/Lower Caves | Discovered new exit (range 15) 1674 | -7/Lower Caves | Identified exit to Data Miner 1674 | -7/Lower Caves | Entered Data Miner 1674 | -7/Data Miner | Discovered new exit (range 6) 1676 | -7/Data Miner | Identified exit to Proximity Caves 1680 | -7/Data Miner | Met Data Miner 1685 | -7/Data Miner | Learned location of Section 7 (-3) 1685 | -7/Data Miner | Acquired the access code to Warlord's prototype stash 1690 | -7/Data Miner | Received God Mode back door access code from Data Miner 1727 | -7/Data Miner | Entered Proximity Caves 1759 | -6/Proximity Caves | Learned Factory terminal intel 1784 | -6/Proximity Caves | Escorted by Enhanced Grunt 1929 | -6/Proximity Caves | Discovered new exit (range 7) 1965 | -6/Proximity Caves | Identified exit to Factory 1985 | -6/Proximity Caves | Entered Factory 1985 | -6/Factory | Evolved 2 slots: Utility x2 1986 | -6/Factory | Loaded intel: 21 terminal locations 2066 | -6/Factory | Incoming investigation squad redirected 2190 | -6/Factory | Fabricated Imp. Cesium-ion Thruster (x1) 2196 | -6/Factory | Fabricated Imp. Cesium-ion Thruster? 2295 | -6/Factory | Build established: Hacker-Sprinter 2348 | -6/Factory | Fabricated Imp. Cesium-ion Thruster (x1) 2478 | -6/Factory | Local fabrication network quarantined 2585 | -6/Factory | Identified exit to Lower Caves 2585 | -6/Factory | Identified exit to Extension 2599 | -6/Factory | Sucked down chute 2599 | -6/Factory | Entered Waste 2602 | -6/Waste | Spotted C-40 Crusher 2605 | -6/Waste | Spotted C-40 Crusher 2607 | -6/Waste | Spotted C-40 Crusher 2608 | -6/Waste | Spotted C-40 Crusher 2615 | -6/Waste | Spotted C-40 Crusher 2624 | -6/Waste | Discovered new exit (range 12) 2635 | -6/Waste | Identified exit to Factory 2650 | -6/Waste | Entered Factory 2807 | -6/Factory | Discovered new exit (range 15) 2850 | -6/Factory | Discovered exit to Lower Caves (range 8) 2867 | -6/Factory | Identified exit to Factory 2968 | -6/Factory | Fabricated Imp. Cesium-ion Thruster (x1) 3032 | -6/Factory | Found Prototype Processor 3032 | -6/Factory | Identified Exp. Signal Interpreter 3174 | -6/Factory | Discovered exit to Factory (range 15) 3323 | -6/Factory | Entered Extension 3509 | -6/Extension | Rescued A7 3601 | -6/Extension | Rescued a captive Derelict 3605 | -6/Extension | Rescued a captive Derelict 3606 | -6/Extension | Rescued a captive Derelict 3614 | -6/Extension | Rescued a captive Derelict 3614 | -6/Extension | Rescued a captive Derelict 3965 | -6/Extension | Spotted B-75 Beast 3983 | -6/Extension | Allies destroyed B-75 Beast 3993 | -6/Extension | Spotted B-75 Beast 4002 | -6/Extension | Allies destroyed B-75 Beast 4012 | -6/Extension | Rescued a captive Derelict 4086 | -6/Extension | Rescued a captive Derelict 4088 | -6/Extension | Rescued a captive Derelict 4200 | -6/Extension | Discovered exit to Factory (range 10) 4201 | -6/Extension | Discovered new exit (range 6) 4208 | -6/Extension | Identified exit to Cetus 4237 | -6/Extension | Entered Cetus 4237 | -6/Cetus | Accompanied by 9 allies 4242 | -6/Cetus | Acquired a Cetus Manufacturing Module code from A7 4258 | -6/Cetus | Spotted Cetus Guard 4258 | -6/Cetus | Spotted Cetus Guard 4260 | -6/Cetus | Spotted Cetus Guard 4266 | -6/Cetus | Allies destroyed Cetus Guard 4267 | -6/Cetus | Destroyed Cetus Guard 4273 | -6/Cetus | Allies destroyed Cetus Guard 4276 | -6/Cetus | Spotted Cetus Guard 4285 | -6/Cetus | Allies destroyed Cetus Guard 4329 | -6/Cetus | Started Cetus Manufacturing Module 4354 | -6/Cetus | Manufactured an Enhanced Grunt 4378 | -6/Cetus | Escorted A7 to Cetus Mainframe 4379 | -6/Cetus | Manufactured an Enhanced Grunt 4404 | -6/Cetus | Manufactured an Enhanced Grunt 4429 | -6/Cetus | Manufactured an Enhanced Grunt 4454 | -6/Cetus | Manufactured an Enhanced Grunt 4469 | -6/Cetus | Discovered new exit (range 15) 4530 | -6/Cetus | Spotted Cetus Guard 4530 | -6/Cetus | Spotted Cetus Guard 4535 | -6/Cetus | Spotted Cetus Guard 4540 | -6/Cetus | Destroyed Cetus Guard 4540 | -6/Cetus | Spotted Cetus Guard 4548 | -6/Cetus | Allies destroyed Cetus Guard 4550 | -6/Cetus | Allies destroyed Cetus Guard 4552 | -6/Cetus | Allies destroyed Cetus Guard 4555 | -6/Cetus | Discovered exit to Factory (range 16) 4557 | -6/Cetus | Met Revision 17 4612 | -6/Cetus | Destroyed A7 4616 | -6/Cetus | Extracted ID and sensor layout for unrecognized location from A7's data core 4633 | -6/Cetus | Identified exit to Archives 4639 | -6/Cetus | Entered Archives 4639 | -6/Archives | Accompanied by 5 allies 4692 | -6/Archives | Discovered new exit (range 15) 4696 | -6/Archives | Discovered new exit (range 15) 4702 | -6/Archives | Identified exit to Hub_04(d) 4723 | -6/Archives | Entered Hub_04(d) 4723 | -6/Hub_04(d) | Accompanied by 3 allies 4923 | -6/Hub_04(d) | Build established: Machinist-Sprinter 4924 | -6/Hub_04(d) | Network Hub disabled 4955 | -6/Hub_04(d) | Spotted B-75 Beast 4962 | -6/Hub_04(d) | Network Hub disabled 4970 | -6/Hub_04(d) | Spotted Lightning 4971 | -6/Hub_04(d) | Spotted Lightning 4972 | -6/Hub_04(d) | Spotted Lightning 4975 | -6/Hub_04(d) | Entered Factory 4975 | -5/Factory | Evolved 2 slots: Utility x2 5061 | -5/Factory | Incoming investigation squad redirected 5105 | -5/Factory | Discovered new exit (range 16) 5226 | -5/Factory | Central database locked down 5261 | -5/Factory | Build established: Hacker-Sprinter 5278 | -5/Factory | Fabricated Exp. Sensor Array? 5375 | -5/Factory | Local fabrication network quarantined 5378 | -5/Factory | Sucked down chute 5378 | -5/Factory | Entered Waste 5378 | -5/Waste | The area was eerily silent 5430 | -5/Waste | Found Prototype Device 5430 | -5/Waste | Identified Exp. Focal Shield 5434 | -5/Waste | Discovered new exit (range 12) 5441 | -5/Waste | Identified exit to Factory 5455 | -5/Waste | Found Broken Adv. Powered Armor 5470 | -5/Waste | Entered Factory 5551 | -5/Factory | Repaired Broken Adv. Powered Armor 5606 | -5/Factory | Repaired Mni. Fusion Reactor 5677 | -5/Factory | Identified exit to Upper Caves 5682 | -5/Factory | Discovered new exit (range 5) 5792 | -5/Factory | Fabricated Exp. Terrain Scanner (x1) 5896 | -5/Factory | Fabricated Cld. Nuclear Pulse Thruster (x1) 5981 | -5/Factory | Fabricated Cld. Nuclear Pulse Thruster (x1) 6095 | -5/Factory | Found Prototype Processor 6095 | -5/Factory | Identified Exp. Terrain Scan Processor 6102 | -5/Factory | Discovered new exit (range 21) 6140 | -5/Factory | Fabricated Cld. Nuclear Pulse Thruster (x1) 6154 | -5/Factory | Local fabrication network quarantined 6170 | -5/Factory | Entered Upper Caves 6257 | -5/Upper Caves | Spotted B-75 Beast 6257 | -5/Upper Caves | Learned location of Armory (-4) 6267 | -5/Upper Caves | Discovered new exit (range 16) 6305 | -5/Upper Caves | Identified exit to Upper Caves 6305 | -5/Upper Caves | Entered another Upper Caves area 6310 | -5/Upper Caves | Discovered new exit (range 11) 6311 | -5/Upper Caves | Found Alien Artifact 6319 | -5/Upper Caves | Identified exit to Factory 6389 | -5/Upper Caves | Build established: Hacker-Scout 6463 | -5/Upper Caves | Encountered a Warlord checkpoint 6494 | -5/Upper Caves | Discovered new exit (range 22) 6499 | -5/Upper Caves | Identified exit to Warlord 6542 | -5/Upper Caves | Entered Warlord 6550 | -5/Warlord | Discovered new exit (range 26) 6604 | -5/Warlord | Found Prototype Device 6604 | -5/Warlord | Identified Minesniffer Drone Bay 6649 | -5/Warlord | Met Warlord 6674 | -5/Warlord | Warlord's base attacked by MAIN.C 6681 | -5/Warlord | Opened Warlord's prototype stash 6685 | -5/Warlord | Found Prototype Device 6685 | -5/Warlord | Identified Exp. Phase Shifter 6693 | -5/Warlord | Found Prototype Processor 6693 | -5/Warlord | Identified Exp. Target Analyzer 6699 | -5/Warlord | Found Prototype Reactor 6788 | -5/Warlord | Opened side exit 6790 | -5/Warlord | Spotted B-75 Beast 6815 | -5/Warlord | Identified exit to Proximity Caves 6855 | -5/Warlord | Entered Proximity Caves 6884 | -4/Proximity Caves | Learned location of Quarantine (-3) 6891 | -4/Proximity Caves | Learned Research trap positions 6960 | -4/Proximity Caves | Discovered exit to Factory (range 28) 7019 | -4/Proximity Caves | Entered Factory 7019 | -4/Factory | Evolved 2 slots: Propulsion x1, Utility x1 7076 | -4/Factory | Spotted B-86 Titan 7114 | -4/Factory | Discovered new exit (range 13) 7158 | -4/Factory | Identified exit to Upper Caves 7158 | -4/Factory | Identified exit to Armory 7215 | -4/Factory | Fabricated Exp. Sensor Array? 7245 | -4/Factory | Discovered new exit (range 8) 7246 | -4/Factory | Identified exit to Research 7456 | -4/Factory | Identified Dimensional Node Initializer 7456 | -4/Factory | Identified Vortex Chain Reactor 7466 | -4/Factory | Discovered exit to Research (range 24) 7514 | -4/Factory | Build established: Machinist-Scout 7563 | -4/Factory | Fabricated Electron Diverter (x1) 7629 | -4/Factory | Local fabrication network quarantined 7665 | -4/Factory | Fabricated Electron Diverter? 7703 | -4/Factory | Entered Armory 8004 | -4/Armory | Found Prototype Slashing Weapon 8004 | -4/Armory | Identified Centrium Greatsword 8116 | -4/Armory | Fabricated Electron Diverter? 8154 | -4/Armory | Spotted B-86 Titan 8180 | -4/Armory | Fabricated Exp. Terrain Scanner (x1) 8216 | -4/Armory | Discovered exit to Research (range 15) 8271 | -4/Armory | Discovered new exit (range 20) 8292 | -4/Armory | Identified exit to Lab 8292 | -4/Armory | Entered Lab 8294 | -4/Lab | Discovered exit to Research (range 9) 8296 | -4/Lab | Hidden lab's door opened automatically 8296 | -4/Lab | Sensor layout match revealed 8297 | -4/Lab | Gained access to the hidden lab's interior 8308 | -4/Lab | Found Prototype Protection 8308 | -4/Lab | Identified Hvy. Regenerative Plating 8311 | -4/Lab | Found Prototype Hackware 8311 | -4/Lab | Identified Quantum Router 8314 | -4/Lab | Found Prototype Energy Gun 8314 | -4/Lab | Identified Hyp. EM Gauss Rifle 8323 | -4/Lab | Lost 3 parts (1n2u) 8331 | -4/Lab | Found Alien Artifact 8336 | -4/Lab | Found Alien Artifact 8342 | -4/Lab | Found Alien Artifact 8354 | -4/Lab | Entered Research 8354 | -3/Research | Evolved 2 slots: Utility x2 8355 | -3/Research | Loaded intel: 69 trap records 8444 | -3/Research | Identified Core Regenerator 8444 | -3/Research | Identified Integrated Dissipator 8444 | -3/Research | Identified Transdimensional Reconstructor 8444 | -3/Research | Installed Integrated Dissipator, increased core heat dissipation (+20) 8526 | -3/Research | Discovered new exit (range 16) 8533 | -3/Research | Identified exit to Quarantine 8554 | -3/Research | Revision forces began assault on 0b10 8579 | -3/Research | Build established: Wizard-Scout 8647 | -3/Research | Fabricated Electron Diverter (x1) 8720 | -3/Research | Met up with Revision 17++ 8751 | -3/Research | Fabricated Electron Diverter (x1) 8853 | -3/Research | Fabricated Electron Diverter (x1) 8869 | -3/Research | Entered Quarantine 8961 | -3/Quarantine | Cryocooling Duct disabled 8976 | -3/Quarantine | Ambient heat levels rising (+20) 8976 | -3/Quarantine | Non-combat units ordered to evacuate 9011 | -3/Quarantine | Discovered new exit (range 29) 9062 | -3/Quarantine | Found Alien Slashing Weapon 9062 | -3/Quarantine | Identified Sigix Broadsword 9072 | -3/Quarantine | Found Alien Artifact 9135 | -3/Quarantine | Identified Subatomic Replicator 9205 | -3/Quarantine | Spotted Fortress 9219 | -3/Quarantine | Discovered new exit (range 5) 9220 | -3/Quarantine | Identified exit to Section 7 9220 | -3/Quarantine | Entered Section 7 9278 | -3/Section 7 | Identified exit to Research 9565 | -3/Section 7 | Found Alien Artifact 9572 | -3/Section 7 | Identified Integrated Reactor 9572 | -3/Section 7 | Installed Integrated Reactor, increased core energy generation (+10) 9590 | -3/Section 7 | Spotted S7 Guard 9594 | -3/Section 7 | Found Alien Artifact 9604 | -3/Section 7 | Identified Integrated Singularity Reactor 9609 | -3/Section 7 | Used Subatomic Replicator to replicate Integrated Singularity Reactor 9611 | -3/Section 7 | Installed Integrated Singularity Reactor, increased core energy generation (+20) 9612 | -3/Section 7 | Installed Integrated Singularity Reactor, increased core energy generation (+20) 9639 | -3/Section 7 | Spotted B-99 Colossus 9649 | -3/Section 7 | Found Integrated Dissipator 9649 | -3/Section 7 | Installed Integrated Dissipator, increased core heat dissipation (+20) 9651 | -3/Section 7 | Found Integrated Dissipator 9651 | -3/Section 7 | Installed Integrated Dissipator, increased core heat dissipation (+20) 9659 | -3/Section 7 | Found Alien Artifact 9659 | -3/Section 7 | Identified LRC Storage 9659 | -3/Section 7 | Installed LRC Storage, increased inventory capacity (+2) 9662 | -3/Section 7 | Found Alien Artifact 9662 | -3/Section 7 | Identified LRC Armor 9662 | -3/Section 7 | Installed LRC Armor, increased core integrity (+250) 9675 | -3/Section 7 | Found Integrated Dissipator 9675 | -3/Section 7 | Installed Integrated Dissipator, increased core heat dissipation (+20) 9707 | -3/Section 7 | Found Alien Artifact 9707 | -3/Section 7 | Identified Matter Drive 9714 | -3/Section 7 | Found Transdimensional Reconstructor 9715 | -3/Section 7 | Found Transdimensional Reconstructor 9717 | -3/Section 7 | Found Alien Artifact 9910 | -3/Section 7 | Build established: Hacker-Scout 10027 | -3/Section 7 | Spotted B-86 Titan 10027 | -3/Section 7 | Spotted Alpha 7 10051 | -3/Section 7 | Warped through subspace 10051 | -3/Section 7 | Spotted Alpha 7 10082 | -3/Section 7 | Found Integrated Reactor 10082 | -3/Section 7 | Installed Integrated Reactor, increased core energy generation (+10) 10098 | -3/Section 7 | Found Alien Artifact 10100 | -3/Section 7 | Entered Research 10100 | -2/Research | Warlord forces began assault on 0b10 10100 | -2/Research | Evolved 2 slots: Propulsion x2 10119 | -2/Research | Identified exit to Testing 10142 | -2/Research | Met up with Warlord 10155 | -2/Research | Spotted B-90 Cyclops 10161 | -2/Research | Identified Integrity Redistributor 10164 | -2/Research | Discovered new exit (range 16) 10193 | -2/Research | Found Prototype Hackware 10194 | -2/Research | Identified Exp. System Shield 10210 | -2/Research | Research machine network offline 10215 | -2/Research | Spotted B-90 Cyclops 10353 | -2/Research | Borebot progress halted 10378 | -2/Research | Borebot progress halted 10448 | -2/Research | Borebot progress halted 10467 | -2/Research | Borebot progress halted 10473 | -2/Research | Spotted Striker 10476 | -2/Research | Destroyed Striker 10488 | -2/Research | Spotted Striker 10568 | -2/Research | Spotted Striker 10609 | -2/Research | Spotted Striker 10610 | -2/Research | Spotted Striker 10702 | -2/Research | Spotted Striker 10722 | -2/Research | Spotted Striker 10742 | -2/Research | Entered Testing 10755 | -2/Testing | Spotted PL-83OYKK93JR 10794 | -2/Testing | Found Prototype Launcher 10794 | -2/Testing | Identified Z-bomb Delivery System 10802 | -2/Testing | Found Prototype Launcher 10802 | -2/Testing | Identified Tesla Bomb Launcher 10867 | -2/Testing | Discovered new exit (range 25) 10894 | -2/Testing | Identified exit to Access 10904 | -2/Testing | Found Prototype Device 10904 | -2/Testing | Identified AEGIS Remote Shield 10910 | -2/Testing | Found Prototype Device 10910 | -2/Testing | Identified Exp. Actuator Array 10964 | -2/Testing | Fabricated Electron Diverter (x1) 10981 | -2/Testing | Entered Access 10981 | -1/Access | Accompanied by 1 ally 10981 | -1/Access | Evolved 2 slots: Utility x2 11008 | -1/Access | Found Prototype Processor 11008 | -1/Access | Identified Exp. Melee Analysis Suite 11010 | -1/Access | Found Exp. Melee Analysis Suite 11279 | -1/Access | Spotted B-99 Colossus 11402 | -1/Access | Spotted B-99 Colossus 11416 | -1/Access | Discovered new exit (range 8) 11500 | -1/Access | Fabricated Femtoactuators (x1) 11557 | -1/Access | Fabricated Exp. Armor Integrity Analyzer (x1) 11608 | -1/Access | Fabricated Electron Diverter (x1) 11661 | -1/Access | Fabricated Electron Diverter (x1) 11681 | -1/Access | Identified exit to Command 11721 | -1/Access | Entered Command 11766 | -1/Command | Phase Generator disabled 11843 | -1/Command | Incoming investigation squad redirected 11863 | -1/Command | Build established: Machinist-Scout 11984 | -1/Command | Discovered new exit (range 26) 12139 | -1/Command | Spotted M Guard 12140 | -1/Command | Spotted Combat Programmer 12151 | -1/Command | Destroyed 7 combat bots 12152 | -1/Command | Disengaged cave seal 12152 | -1/Command | Derelicts emerged from the dark tunnel 12165 | -1/Command | Spotted Combat Programmer 12166 | -1/Command | Combat Programmer assimilated allied FU-G7L(b) 12169 | -1/Command | Combat Programmer assimilated allied 63-O12(l) 12170 | -1/Command | Combat Programmer assimilated allied MC-YIO(i) 12176 | -1/Command | Combat Programmer assimilated allied 6H-5HO(b) 12180 | -1/Command | Combat Programmer assimilated allied OX-ST6(i) 12181 | -1/Command | Destroyed Combat Programmer 12187 | -1/Command | Spotted M Guard 12187 | -1/Command | Destroyed Combat Programmer 12219 | -1/Command | Destroyed M Guard 12227 | -1/Command | Destroyed M Guard 12227 | -1/Command | Destroyed all MAIN.C guards 12229 | -1/Command | Found Prototype Device 12230 | -1/Command | Identified Thermal Barrier 12245 | -1/Command | Found Prototype Reactor 12245 | -1/Command | Identified Zero-point Reactor 12248 | -1/Command | Found Zero-point Reactor 12250 | -1/Command | Found Zero-point Reactor 12295 | -1/Command | Disengaged cave seal 12295 | -1/Command | Derelicts emerged from the dark tunnel 12346 | -1/Command | Build established: Machinist-Sprinter 12544 | -1/Command | Met MAIN.C 12564 | -1/Command | Destroyed MAIN.C Shell 12564 | -1/Command | 0b10 Conduit disabled 12565 | -1/Command | MAIN.C activated Command garrisons 12581 | -1/Command | Destroyed MAIN.C 12584 | -1/Command | Found Exp. Target Analyzer 12639 | -1/Command | Discovered new exit (range 17) 13014 | -1/Command | Spotted Alpha 7 13059 | -1/Command | Destroyed Alpha 7 13065 | -1/Command | Spotted Alpha 7 13109 | -1/Command | Found Prototype Processor 13109 | -1/Command | Identified Exp. Core Analyzer 13164 | -1/Command | Found Prototype Device 13164 | -1/Command | Identified Adv. Kinecellerator 13198 | -1/Command | Spotted B-99 Colossus 13212 | -1/Command | Destroyed Alpha 7 13238 | -1/Command | Warped through subspace to slip node 13238 | -1/Command | Discovered new exit (range 4) 13242 | -1/Command | Used Integrity Redistributor, redistributed integrity from core (-44) 13244 | -1/Command | Entered Access_0 13245 | -1/Access_0 | Met Architect 13261 | -1/Access_0 | Subspace Access Node disabled 13272 | -1/Access_0 | A6 warped into view 13273 | -1/Access_0 | Subspace Access Node disabled 13289 | -1/Access_0 | Found Core Expander 13308 | -1/Access_0 | Subspace Access Node disabled 13315 | -1/Access_0 | Found Alien Artifact 13321 | -1/Access_0 | A5 warped into view 13324 | -1/Access_0 | Subspace Access Node disabled 13339 | -1/Access_0 | Destroyed A5 13386 | -1/Access_0 | Found Exp. Phase Shifter 13593 | -1/Access_0 | Destroyed A8 13640 | -1/Access_0 | Found Prototype Protection 13640 | -1/Access_0 | Identified Centrium Linked Plating 13797 | -1/Access_0 | Found Prototype Device 13798 | -1/Access_0 | Identified Exp. Thermal Shield 13850 | -1/Access_0 | A4 warped into view 13890 | -1/Access_0 | System corruption reached 10% 13949 | -1/Access_0 | Found Exp. Phase Shifter 13951 | -1/Access_0 | Found Prototype Device 13951 | -1/Access_0 | Identified Desublimator 13973 | -1/Access_0 | Found Prototype Protection 13973 | -1/Access_0 | Identified Med. Regenerative Plating 13981 | -1/Access_0 | Found Core Regenerator 13981 | -1/Access_0 | Used Core Regenerator, restored core integrity (+456) 14064 | -1/Access_0 | Destroyed A4 14146 | -1/Access_0 | Found Exp. Phase Shifter 14204 | -1/Access_0 | Destroyed A6 14338 | -1/Access_0 | Found Prototype Protection 14338 | -1/Access_0 | Identified Centrium Heavy Armor Plating 14434 | -1/Access_0 | Destroyed A2 14435 | -1/Access_0 | Extracted Singularity Gate Test 138-C access codes from A2's data core 14436 | -1/Access_0 | Found Prototype Hackware 14436 | -1/Access_0 | Identified Deep Network Scanner 14438 | -1/Access_0 | Found Prototype Device 14438 | -1/Access_0 | Identified ST Field Compressor 14488 | -1/Access_0 | Found Prototype Protection 14488 | -1/Access_0 | Identified Exp. Powered Armor 14499 | -1/Access_0 | Singularity Gate disabled 14508 | -1/Access_0 | Singularity Gate disabled 14517 | -1/Access_0 | A3 warped into view 14526 | -1/Access_0 | Destroyed A3 14528 | -1/Access_0 | Found Prototype Processor 14528 | -1/Access_0 | Identified Spectral Analyzer 14552 | -1/Access_0 | Found Exp. Powered Armor 14554 | -1/Access_0 | Found Exp. Powered Armor 14564 | -1/Access_0 | Found Prototype Hackware 14564 | -1/Access_0 | Identified Exp. Hacking Suite 14619 | -1/Access_0 | Found Integrated Reactor 14619 | -1/Access_0 | Installed Integrated Reactor, increased core energy generation (+10) 14827 | -1/Access_0 | Build established: Scavenger-Sprinter 14827 | -1/Access_0 | Destroyed 8 combat bots 15821 | -1/Access_0 | Destroyed Architect 15823 | -1/Access_0 | Extracted unknown sensor trigger ID from Architect's data core 15823 | -1/Access_0 | Found Alien Artifact 15829 | -1/Access_0 | Found Prototype Device 15829 | -1/Access_0 | Identified Exp. Weapon Cycler 15886 | -1/Access_0 | Identified Hpw. Transdimensional Reconstructor (x2) 15886 | -1/Access_0 | Warped through subspace to slip node 15886 | -1/Access_0 | Discovered new exit (range 8) 15927 | *** | Establishing 0b11! Last Messages --------------- >>Record "Log L.RSL58V7F" [REDACTED] >>Record "Log L.VFLK3RLK" Warlord has finally begun his main assault, and it's proceeding quite well. All upper Research areas are under control, as are Testing, Quarantine, and Armory. At this rate, MAIN.C and Warlord forces will wipe each other out, or at least severely cripple one another. >>Record "Log L.XLJZXWC5" [REDACTED] >>Record "Log L.Y1U23ASU" [REDACTED] 15882_ Connecting with Gate Controls... 15886_ Identified Hpw. Transdimensional Reconstructor. 15886_ Warped through subspace, drawn to slip node. 15886_ EXIT=FOUND 15889_ System corrupted: Matter fused (-9). 15893_ Dimensional Slip Node implodes. 15894_ The unstable cave ceiling collapses. 15926_ System corrupted: Energy discharge (-83). 15926_ The unstable cave ceiling collapses. Map ----- +----------------------------------------------------+ | | | | | | | | | | | | | | | | | | | | | | | | | | | | | | | | | ?????????????????????????????????????????????????? | | ?????????????????????????????????????????????????? | | ?????????????????????????????????????????????????? | | ?????????????????????????###?????????????????????? | | ??????????????????????### ##????????????????????? | | ??????????????????????# #????????????????????? | | ??????????????????????# ##???????????????????? | | ??????????????????????# #???????????????????? | | ?????????????????????## ##???????????????????? | | ?????????????????????# @ #???????????????????? | | ?????????????????????## #???????????????????? | | ???????????????????### ###???????????????????? | | ???????????????????# # #???????????????????? | | ??????????????????## # ####??????????????????? | | ??????????????????# # # #??????????????????? | | ??????????????????### #??????????????????? | | ??????????????????## # ##?????????????????? | | ??????????????????### # #?????????????????? | | ??????????????????# # #?????????????????? | | ??????????????????## #### # #?????????????????? | | ???????????????????# # # #?????????????????? | | ???????????????????#### # # #?????????????????? | | ????????????????????# ## #?????????????????? | | ????????????????????# # ####?????????????????? | | ????????????????????# # ?????????????????????? | | ???????????????????? # # ????????????????????? | | ??????????????????? ????????????????????? | | ??????????????????? ????????????????????? | | ?????????????????? # ???????????????????? | | ?????????????????? #???????????????????? | | ?????????????????# # #???????????????????? | | ?????????????????# # # #???????????????????? | | ?????????????????#####?#? #???????????????????? | | ??????????????????????????####???????????????????? | +----------------------------------------------------+ Best States ------------- Heat Dissipation 132 Energy Generation 153 Energy Capacity 700 Matter Stores 300 Matter Capacity 300 Sight Range 24 Robot Scan Range 30 Terrain Scan Range 30 Terrain Scan Density 1010 Power Amplification 40 Additional Mass Support 9 Armor Coverage 1425 Resistance: TH 50 Core Shielding 40 Propulsion Shielding 66 Melee Speed Boost 50 Phase Shifting 20 Evasion (%) 101 Melee Accuracy 12 Target Analysis 12 Core Analysis 15 Armor Integrity Analysis 90 Recoil Reduction 2 Offensive Hacking 28 Defensive Hacking 35 Item Schematics ----------------- Lrn. Sensor Array | -7/Factory | Hacked Adv. Signal Interpreter | -7/Factory | Hacked Imp. Flight Unit | -7/Factory | Scanalyzed Combat Drone Bay | -7/Data Miner | Free Lgt. Regenerative Plating | -7/Data Miner | Free Exp. Terrain Scanner | -7/Data Miner | Free Exp. Transmission Jammer | -7/Data Miner | Free Exp. ECM Suite | -7/Data Miner | Free Imp. Cesium-ion Thruster | -6/Factory | Hacked Exp. Sensor Array | -5/Factory | Hacked Cld. Nuclear Pulse Thruster | -5/Factory | Hacked Gravity Neutralizing Apparatus | -5/Factory | Hacked Electron Diverter | -4/Factory | Scanalyzed Femtoactuators | -1/Access | Hacked Exp. Armor Integrity Analyzer | -1/Access | Hacked Robot Schematics ------------------ S-27 Virus | -7/Data Miner | Free G-50 Soldier | -7/Data Miner | Free G-67 Veteran | -7/Data Miner | Free L-41 Fighter | -7/Data Miner | Free I-36 Angel | -7/Data Miner | Free Fabricated ------------ Lrn. Sensor Array | x1 | -7/Factory Adv. Signal Interpreter | x2 | -7/Factory Imp. Cesium-ion Thruster | x1 | -6/Factory Imp. Cesium-ion Thruster | x1 | -6/Factory Imp. Cesium-ion Thruster | x1 | -6/Factory Imp. Cesium-ion Thruster | x1 | -6/Factory Exp. Sensor Array | x1 | -5/Factory Exp. Terrain Scanner | x1 | -5/Factory Cld. Nuclear Pulse Thruster | x1 | -5/Factory Cld. Nuclear Pulse Thruster | x1 | -5/Factory Cld. Nuclear Pulse Thruster | x1 | -5/Factory Exp. Sensor Array | x1 | -4/Factory Electron Diverter | x1 | -4/Factory Electron Diverter | x1 | -4/Factory Electron Diverter | x1 | -4/Armory Exp. Terrain Scanner | x1 | -4/Armory Electron Diverter | x1 | -3/Research Electron Diverter | x1 | -3/Research Electron Diverter | x1 | -3/Research Electron Diverter | x1 | -2/Testing Femtoactuators | x1 | -1/Access Exp. Armor Integrity Analyzer | x1 | -1/Access Electron Diverter | x1 | -1/Access Electron Diverter | x1 | -1/Access Alien Tech Used ----------------- Core Expander Integrated Dissipator Sigix Broadsword Integrated Reactor Subatomic Replicator Integrated Singularity Reactor LRC Storage LRC Armor Matter Drive Transdimensional Reconstructor Integrity Redistributor Core Regenerator High-powered Transdimensional Reconstructor Achievements -------------- None Challenges ------------ None Game ------ Seed SystemCompositeBooster Manual? 0 Play Time 05:10:30 Cumulative 317.3 hours Start 2020.07.03 @ 13:45:31 End 2020.07.03 @ 22:34:07 Sessions 3 Manual Loads 0 Difficulty Rogue Special Mode None Game No. 171 Rogue 171 Adventurer 0 Explorer 0 Win Type 1 Total 22 Types 9/6/4/1/0/0/2 Lore% 94 Gallery% 92 Achievement% 78 Wizard Run 0 Options --------- ASCII 0 Keyboard 0 Movement Numpad Keybinds 0 Fullscreen 2 Font 18/SmallcapsGlow Map View 76x50 Tactical HUD 1 Map Filters NONE Filters NONE Steam 1 RUN: 6b49e452-19dd-4398-84e4-415cd8b97b1e